Cogmind - Beta 14 @@@ ROGUE MODE // 2024.08.10 @ 20:59:55 Player: Boris Result: Destroyed by L-61 Swordsman with Power Sword Performance ------------- Evolutions (9) 4500 Regions Visited (27) 5400 Robots Destroyed (463) 2315 Value Destroyed (24918) 24918 Prototype IDs (88) 1760 Alien Tech Used (4) 800 Bonus (30199) 30199 TOTAL SCORE: 69892 Bonus ------- Triggered High Security 500 High Alert Combat Kills 9318 Follower Combat Kills 5744 Network Hubs Disabled 800 Delivered SUBCON Basin 2000 Registered with UFD 300 Met Zhirov 300 Met Warlord at Base 500 MAIN.C Attacked Warlord 500 Warlord Defense Kills 314 Built Enhanced Grunts 300 Met R17 at Cetus 500 Found Hidden Lab 3000 Met R17 at Research 2000 Destroyed MAIN.C Guards 500 Met MAIN.C 5000 Destroyed MAIN.C Shell 5000 Friendly Fire -6377 Cogmind --------- Core Integrity 0/1600 Matter 295/300 Energy 100/100 System Corruption 37% Temperature Cool (0) Movement Core (50) Location -1/Command Parts ------- > --- POWER (3) -------- (None) > --- PROPULSION (4) --- (None) > --- UTILITY (12) ----- Experimental Core Analyzer > --- WEAPON (6) ------- Powered Hammer > --- INVENTORY (5) ---- Advanced Gravity Neutralizer Experimental Cloaking Device Experimental EM Disruption Field Long-range Tractor Beam KE Penetrator Peak State ------------ > --- POWER ------------ Reinforced Antimatter Reactor Reinforced Antimatter Reactor Light Quantum Reactor > --- PROPULSION ------- Advanced Heavy Siege Treads Overtuned Huge Scrapsphere > --- UTILITY ---------- Scrap Suit Experimental Cooling System Advanced Coolant Injector Advanced Coolant Injector Huge Storage Unit Energy Well Advanced Energy Well Experimental Targeting Computer Experimental Core Analyzer Layered Medium Armor Plating AEGIS Remote Shield > --- WEAPON ----------- BFG-9k Vortex Edition > --- INVENTORY -------- Light Quantum Reactor Light Quantum Reactor Overtuned Huge Scrapsphere Advanced Heat Sink Energy Well Improved Matter Compressor Advanced Gravity Neutralizer Tactical Coordination Suite Experimental Cloaking Device Experimental EM Disruption Field Long-range Tractor Beam Transdimensional Reconstructor Gamma Rifle Enhanced Nova Cannon Warp Cannon Heavy Machine Gun Overtuned Railgun Overtuned Railgun Overtuned Railgun Hellfire Missile Launcher [Rating: 222] Favorites ----------- Power Quantum Reactor Engine Subdweller Power Source Power Core Neutrino Core Reactor Quantum Reactor Propulsion Overtuned Huge Scrapsphere Treads Light Treads Wheel Overtuned Huge Scrapsphere Hover Unit Improved Antigrav System Utility Scrap Suit Device Scrap Suit Storage Huge Storage Unit Processor Experimental Targeting Computer Hackware Improved System Shield Protection Medium Regenerative Plating Weapon Overtuned Railgun Energy Gun Gatling Laser Energy Cannon Subdweller Beam Cannon Ballistic Gun Overtuned Railgun Ballistic Cannon Battle Cannon Launcher Improved Proton Missile Launcher Special Weapon Remote Datajack Impact Weapon Powered Hammer Slashing Weapon Phasing Sabre Special Melee Weapon Dirty Datajack Build | -11 -10 -10 -9 -9 -6 -6 -6 -6 -6 -5 -5 -5 -5 -4 -4 -4 -4 -4 -4 -4 -3 -3 -3 -3 -2 -1 -1 ------- Run | Yrd Mat Sub Rec Scr Fac Ext Cet Arc Hub Fac Upp Upp Zhi Pro Fac Was Fac Upp Upp War Pro Res Arm Lab Res Acc Com Slots Evolved 18 | . . . . . 8 . . . . 2 . . . . 2 . . . . . . 2 . . 2 2 . Power 2 | . . . . . . . . . . 1 . . . . . . . . . . . 1 . . . . . Propulsion 2 | . . . . . 2 . . . . . . . . . . . . . . . . . . . . . . Utility 10 | . . . . . 5 . . . . 1 . . . . 1 . . . . . . 1 . . 2 . . Weapon 4 | . . . . . 1 . . . . . . . . . 1 . . . . . . . . . . 2 . Parts Attached 667 | 7 4 44 11 15 37 33 22 17 64 16 14 2 6 5 17 7 23 18 2 22 20 24 53 4 63 62 55 Power 41 | 1 . 2 . 2 1 . 4 . 1 1 2 . 1 . 1 . 2 1 . 1 2 7 4 1 2 1 4 Engine 8 | 1 . 2 . 2 1 . . . . 1 . . . . . . . . . . . . . . . . 1 Core 4 | . . . . . . . . . . . 2 . . . . . 1 1 . . . . . . . . . Reactor 29 | . . . . . . . 4 . 1 . . . 1 . 1 . 1 . . 1 2 7 4 1 2 1 3 Propulsion 39 | 2 . 4 2 1 7 3 2 . 4 . . . . . 1 . 3 . . . 2 . 2 . 1 1 4 Treads 21 | 2 . 1 2 . 6 1 1 . 2 . . . . . . . 1 . . . 1 . 2 . . . 2 Leg . | . . . . . . . . . . . . . . . . . . . . . . . . . . . . Wheel 17 | . . 3 . 1 1 2 1 . 2 . . . . . 1 . 2 . . . 1 . . . 1 1 1 Hover 1 | . . . . . . . . . . . . . . . . . . . . . . . . . . . 1 Flight . | . . . . . . . . . . . . . . . . . . . . . . . . . . . . Utility 362 | 2 1 24 2 6 24 16 5 7 34 5 12 1 3 1 10 5 13 6 . 13 14 13 32 2 48 40 23 Device 281 | 1 . 15 . 3 15 13 2 4 24 3 10 1 2 1 5 5 13 5 . 11 11 9 29 2 46 36 15 Storage 12 | 1 1 . 1 1 2 . 1 . . . . . . . . . . . . . . . . . . . 5 Processor 15 | . . . . 1 1 . . 1 3 . 1 . . . 1 . . 1 . 1 . . . . 1 2 2 Hackware 20 | . . . . . 5 . . 1 2 2 . . . . 4 . . . . . . 2 1 . 1 2 . Protection 34 | . . 9 1 1 1 3 2 1 5 . 1 . 1 . . . . . . 1 3 2 2 . . . 1 Artifact . | . . . . . . . . . . . . . . . . . . . . . . . . . . . . Weapon 225 | 2 3 14 7 6 5 14 11 10 25 10 . 1 2 4 5 2 5 11 2 8 2 4 15 1 12 20 24 Energy Gun 55 | 1 . 5 3 2 2 8 2 5 5 . . . . . . . . 1 . 2 2 2 3 . . 7 5 Energy Cannon 46 | . . 4 2 1 2 . 1 . 6 1 . . . 2 1 1 1 . . 2 . . 2 1 6 7 6 Ballistic Gun 78 | 1 2 2 2 2 . 4 3 3 10 5 . 1 1 2 2 1 4 5 . 3 . . 8 . 3 6 8 Ballistic Cannon 1 | . . 1 . . . . . . . . . . . . . . . . . . . . . . . . . Launcher 9 | . . . . 1 1 . 1 . . . . . . . . . . . . 1 . . . . 1 . 4 Special Weapon 20 | . 1 2 . . . 2 3 2 3 2 . . . . . . . . . . . 2 1 . 2 . . Impact Weapon 1 | . . . . . . . . . . . . . . . . . . . . . . . . . . . 1 Slashing Weapon 10 | . . . . . . . 1 . 1 2 . . 1 . 2 . . 1 1 . . . 1 . . . . Piercing Weapon . | . . . . . . . . . . . . . . . . . . . . . . . . . . . . Special Melee Weapon 5 | . . . . . . . . . . . . . . . . . . 4 1 . . . . . . . . Unidentified Prototypes 25 | . . . . . . . 7 . 7 . . . 4 . . . 2 . . 1 . . . 2 . 1 1 Corrupted Parts 6 | . . . . . 3 . . . . . . . . . . . . . . . 1 . . . . . 2 System Corruption 16 | . . . . . 10 . . . . . . . . . . . . . . . 1 . . . . . 5 Parts Lost 51 | . . 2 1 . 2 . 1 . 5 . . 1 . . 1 . 2 . . 1 . 1 . . 1 3 30 Power 7 | . . 1 . . . . . . . . . . . . . . . . . . . 1 . . . . 5 Propulsion 5 | . . 1 1 . . . . . . . . . . . . . . . . . . . . . . . 3 Utility 16 | . . . . . . . . . 3 . . . . . . . . . . 1 . . . . 1 1 10 Weapon 23 | . . . . . 2 . 1 . 2 . . 1 . . 1 . 2 . . . . . . . . 2 12 Highest Loss Streak 23 | . . 1 1 . 1 . 1 . 2 . . 1 . . 1 . 1 . . 1 . 1 . . 1 1 23 To Critical Strikes . | . . . . . . . . . . . . . . . . . . . . . . . . . . . . Average Slot Usage (%) 86 | . 100 99 99 90 81 84 79 78 76 81 81 82 68 80 79 84 83 78 78 77 78 80 85 78 85 84 79 Engine 6 | . 14 13 14 13 6 6 2 . . 4 5 5 2 . . . . . . . . . . . . . . Reactor 4 | . . . . . . . 3 6 6 5 1 . 2 5 7 10 10 8 5 4 5 9 14 9 13 11 9 Treads 9 | . 28 25 20 11 9 6 5 6 6 5 5 5 5 5 1 . 2 . . . . . 2 4 4 2 2 Wheel 6 | . . 3 7 8 6 12 7 6 5 5 5 5 5 5 8 10 7 10 10 10 9 9 5 4 4 5 5 Device 12 | . 14 10 11 4 16 22 20 12 14 9 9 11 13 17 12 9 11 10 10 13 18 13 13 12 22 23 23 Storage 8 | . 14 14 14 14 6 6 6 6 6 5 5 5 5 5 5 5 5 5 5 5 5 4 4 4 4 4 6 Processor 6 | . . . . 2 6 6 6 6 9 11 11 11 11 11 10 10 10 15 15 12 10 9 9 9 8 9 9 Hackware 2 | . . . . . 7 . . 5 4 6 6 5 2 . 6 10 8 . . . . 8 9 9 6 4 1 Protection 4 | . . 3 2 7 . 1 6 5 1 5 5 5 5 5 5 5 5 5 5 5 7 5 4 4 4 2 1 Energy Gun 7 | . 14 8 9 2 6 18 . 17 10 . . . . . . . . 5 5 4 12 13 4 . . 11 9 Energy Cannon 4 | . . 15 11 6 3 . 1 . 2 2 . . . 1 3 . 1 . . . . . . 3 4 2 1 Ballistic Gun 8 | . 12 2 7 15 7 1 9 1 4 11 17 17 3 12 10 20 18 8 7 12 7 4 13 14 12 7 8 Peak Build Rating 222 | 7 9 29 29 44 76 82 110 107 120 122 122 119 123 130 142 123 132 133 133 147 155 163 172 171 192 220 222 Average Rating 83 | 4 8 12 18 27 68 75 96 97 102 118 118 118 102 125 128 120 124 129 132 134 147 153 164 154 185 191 174 On Entrance 106 | . 7 9 29 13 44 72 74 107 98 109 120 119 118 123 130 116 123 119 133 130 144 148 158 171 171 181 219 Naked Turns . | . . . . . . . . . . . . . . . . . . . . . . . . . . . . Heaviest Build 231 | 12 29 48 59 77 118 127 136 135 140 146 144 136 138 150 169 160 165 166 162 175 174 185 198 193 209 216 231 Greatest Support 160 | 40 40 40 40 40 30 40 80 20 160 20 20 80 20 20 40 40 80 40 40 40 40 40 40 36 36 56 56 Greatest Overweight (x) 41 | . . 2 1 25 5 6 6 41 6 7 7 6 6 7 7 3 8 4 4 4 8 4 9 5 10 10 11 Average Overweight (x) 3 | . . . . 3 3 4 3 14 4 6 6 5 5 6 3 3 3 3 3 3 3 3 5 4 5 4 4 Largest Inventory Capacity 25 | 8 15 15 20 20 25 25 25 25 25 25 25 25 25 25 25 25 25 25 25 25 25 25 25 25 25 25 25 Average Capacity 22 | 7 14 15 15 20 21 25 25 25 25 25 25 25 25 25 25 25 25 25 25 25 25 25 25 25 25 25 24 Most Carried 25 | 5 12 15 16 20 25 25 25 25 25 25 25 25 25 25 25 24 25 25 25 25 25 25 25 25 25 25 25 Average Carried 20 | 2 9 14 12 17 19 23 23 24 24 24 24 24 24 24 24 22 24 24 24 24 24 24 24 21 24 23 20 Final Capacity 25 | 8 15 15 20 20 25 25 25 25 25 25 25 25 25 25 25 25 25 25 25 25 25 25 25 25 25 25 5 Final Carried 25 | 3 12 15 16 20 24 21 25 25 25 25 25 25 25 25 22 23 24 25 25 25 25 25 24 25 25 24 5 Class Distribution -------------------- 26% | Scavenger-Scrapper 23% | Commander-Mutant 15% | Mutant 11% | Commander-Gunner 5% | Hacker-Gunner 3% | Commander-Scrapper 3% | Scavenger-Executioner 3% | Scavenger-Gunner Dominant Class ---------------- Mutant | -10/Materials Mutant | -10/Subcaves Mutant | -9/Recycling Commander-Mutant | -9/Scraptown Hacker-Gunner | -6/Factory Commander-Scrapper | -6/Extension Commander-Tank | -6/Cetus Commander-Gunner | -6/Archives Scavenger-Gunner | -6/Hub_04(d) Scavenger-Scrapper | -5/Factory Scavenger-Scrapper | -5/Upper Caves Scavenger-Scrapper | -5/Upper Caves Scavenger-Mutant | -5/Zhirov Scavenger-Scrapper | -4/Proximity Caves Scavenger-Scrapper | -4/Factory Scavenger-Scrapper | -4/Waste Scavenger-Scrapper | -4/Factory Scavenger-Scrapper | -4/Upper Caves Scavenger-Scrapper | -4/Upper Caves Scavenger-Scrapper | -4/Warlord Scavenger-Scrapper | -3/Proximity Caves Scavenger-Scrapper | -3/Research Hacker-Gunner | -3/Armory Hacker-Gunner | -3/Lab Hacker-Gunner | -2/Research Scavenger-Executioner | -1/Access Scavenger-Executioner | -1/Command Resources | -11 -10 -10 -9 -9 -6 -6 -6 -6 -6 -5 -5 -5 -5 -4 -4 -4 -4 -4 -4 -4 -3 -3 -3 -3 -2 -1 -1 ----------- Run | Yrd Mat Sub Rec Scr Fac Ext Cet Arc Hub Fac Upp Upp Zhi Pro Fac Was Fac Upp Upp War Pro Res Arm Lab Res Acc Com Matter Collected 16689 | 278 7 506 305 140 930 1717 215 413 1861 298 325 412 . 315 543 521 878 300 104 321 455 440 1421 . 1664 1057 1263 Remotely 2579 | . . . . . . . . . 932 . . . . . . . . . . 165 . . 361 . 329 288 504 Salvage Created 29506 | 116 7 496 428 . 997 1820 177 290 3459 189 355 1021 . 302 903 1864 1598 716 390 128 1082 837 2385 . 3481 3370 3095 Parts 1299 | 7 3 29 24 . 42 69 17 21 177 11 16 38 . 13 41 46 71 24 14 2 49 48 117 . 149 175 96 Haulers Intercepted 4 | . . . . . 2 . . . 2 . . . . . . . . . . . . . . . . . . Recyclers Shooed 8 | . . . 2 . . 2 . . . . . . . . . . . . . . . . . . 4 . . Parts Field Recycled . | . . . . . . . . . . . . . . . . . . . . . . . . . . . . Retrieved Matter . | . . . . . . . . . . . . . . . . . . . . . . . . . . . . Parts Self-Destructed 158 | . . 20 . . . . . . . . 30 32 . 6 . . . 31 14 . 25 . . . . . . Prevented 34 | . . . . . . . . . . . 1 . . 8 . . . 4 1 . 20 . . . . . . Kills | -11 -10 -10 -9 -9 -6 -6 -6 -6 -6 -5 -5 -5 -5 -4 -4 -4 -4 -4 -4 -4 -3 -3 -3 -3 -2 -1 -1 ------- Run | Yrd Mat Sub Rec Scr Fac Ext Cet Arc Hub Fac Upp Upp Zhi Pro Fac Was Fac Upp Upp War Pro Res Arm Lab Res Acc Com Combat Hostiles Destroyed 369 | . . 14 8 . 13 28 1 1 46 3 4 15 . 6 12 6 24 12 4 2 19 9 36 . 38 37 31 Melee 2 | . . . . . . . . . . . . . . . . . . 1 1 . . . . . . . . Guns 274 | . . 3 4 . 11 28 . 1 28 3 4 15 . 1 6 6 20 9 3 2 16 6 36 . 25 30 17 Cannons 44 | . . 10 4 . 1 . . . 5 . . . . 4 5 . 3 . . . . . . . 7 3 2 AOE 10 | . . . . . . . . . . . . . . . . . . . . . . . . . 3 . 7 Classes Destroyed 31 | 2 1 4 1 . 4 6 . . 3 . . 1 . . . 1 . 1 1 . 1 3 2 . . . . Worker 27 | . . . . . 2 1 . . 13 1 . . . . . . . . . . . . . . 1 7 2 Builder 21 | . 1 . . . 2 2 . . 2 . . . . . . . 1 . . . . 1 . . 3 9 . Tunneler 6 | 1 . . 1 . . . . . 1 . . . . . . . . . . . . . . . 3 . . Hauler 4 | . . . . . 2 . . . 2 . . . . . . . . . . . . . . . . . . Recycler 4 | 1 . . . . . 1 . . . . . . . . . . . . . . . . . . . . 2 Carrier 1 | . . . . . . . . . 1 . . . . . . . . . . . . . . . . . . Minesweeper 1 | . . . . . . . . . . . . . . . . . . . 1 . . . . . . . . Mechanic 3 | . . . . . . . . . . . . . . . . . . . . . . . 1 . . . 2 Operator 7 | . . . . . . 1 . 5 . . . . . . 1 . . . . . . . . . . . . Drone 1 | . . . . . . . . . . . . . . . . . . . . . 1 . . . . . . Watcher 12 | . . . . . . 1 1 . 1 . . . . . 2 . . . . . . . 1 . 4 1 1 Swarmer 52 | . . 3 . . 2 1 . . . 1 . 1 . 3 3 . 3 6 . . 9 2 8 . 3 3 4 Saboteur 7 | . . . . . . 1 . . . . . 1 . . . . . . . . . . 3 . . 1 1 Grunt 127 | . . 2 3 . 7 15 . . 16 . 1 4 . 2 3 . 12 . 4 1 5 2 8 . 14 15 13 Brawler 23 | . . . . . . 1 . . 2 . . 6 . . . . 1 3 . . . . 1 . 2 3 4 Duelist 9 | . . . . . 1 1 . . 1 . . . . . 1 . . 3 . . . . 1 . . . 1 Protector 9 | . . . . . . . . . 4 . . . . . . . . . . . . . 2 . 1 1 1 Sentry 41 | . . 1 4 . 2 5 . 1 3 1 1 1 . 1 3 . 3 . . . 2 2 4 . 3 3 1 Demolisher 1 | . . . . . . . . . . . . . . . . . . . . . . . 1 . . . . Specialist 6 | . . . . . . 1 . . 4 . . . . . . . . . . . . . . . 1 . . Hunter 22 | . . . 1 . . . . . 2 . 2 1 . . 1 . . . . . 2 . 3 . 6 2 2 Programmer 32 | . . . . . 1 2 . . 3 1 . . . . 1 . 4 . . . . . 3 . 7 10 . Heavy 5 | . . . . . . . . . 2 . . . . . . . 1 . . . . . 1 . 1 . . Behemoth 4 | . . . . . . . . . . . . . . . . . . 1 . 1 . 1 1 . . . . Compactor 6 | . . . . . . . . . . . . . . . . 6 . . . . . . . . . . . Cetus Guard 1 | . . . . . . . 1 . . . . . . . . . . . . . . . . . . . . M Guard 2 | . . . . . . . . . . . . . . . . . . . . . . . . . . . 2 Lightning 9 | . . . . . . . . . 9 . . . . . . . . . . . . . . . . . . Combat Programmer 2 | . . . . . . . . . . . . . . . . . . . . . . . . . . . 2 Striker 1 | . . . . . . . . . . . . . . . . . . . . . . 1 . . . . . Executioner 1 | . . . . . . . . . . . . . . . . . . . . . . 1 . . . . . Subdweller 8 | . . 8 . . . . . . . . . . . . . . . . . . . . . . . . . Scrapoid 3 | . . . . . . 1 . . . . 1 . . . . 1 . . . . . . . . . . . Packrat 1 | . . . . . . . . . . . . . . . . . . . 1 . . . . . . . . Guerrilla 1 | . . . . . . 1 . . . . . . . . . . . . . . . . . . . . . Mutant 1 | . . . . . . . . . . . . 1 . . . . . . . . . . . . . . . Revision 1 | . . . . . . . . . . . . . . . . . . . . . . 1 . . . . . Best Kill Streak 14 | 2 1 3 2 . 6 12 2 3 7 2 2 13 . 5 4 2 3 6 2 1 8 3 6 . 8 14 10 Combat Bots Only 13 | . . 3 2 . 4 11 1 1 5 2 2 13 . 5 3 2 3 6 2 1 8 3 6 . 8 8 9 Max Kills in Single Turn 5 | 1 1 1 1 . 2 2 1 2 5 1 1 2 . 1 2 1 2 2 1 1 1 1 3 . 2 3 4 Gunslinging 1 | . . . . . 1 . . . . . . . . . 1 . . 1 . . . . . . 1 1 . Exploded 3 | . . . . . . . . . . . . . . . . . . . . . . . . . 2 . 3 Melee 1 | . . . . . . . . . . . . . . . . . . 1 1 . . . . . . . . Uniques/NPCs Destroyed 2 | . . . . . . . 1 . . . . . . . . . . . . . . . . . . . 1 A7 (-6/Cetus) MAIN.C Shell (-1/Command) Combat | -11 -10 -10 -9 -9 -6 -6 -6 -6 -6 -5 -5 -5 -5 -4 -4 -4 -4 -4 -4 -4 -3 -3 -3 -3 -2 -1 -1 -------- Run | Yrd Mat Sub Rec Scr Fac Ext Cet Arc Hub Fac Upp Upp Zhi Pro Fac Was Fac Upp Upp War Pro Res Arm Lab Res Acc Com Hostile Shots Fired 1920 | . . 76 29 . 103 115 20 . 213 29 29 58 . 21 43 . 115 10 6 35 90 69 123 . 130 226 380 Missed 504 | . . 25 9 . 37 45 10 . 45 6 9 12 . 3 10 . 31 4 1 8 24 24 29 . 38 57 77 Damage Taken 24487 | . . 797 282 . 970 849 171 . 3729 493 410 1028 . 303 761 . 1289 104 283 284 1242 524 1704 . 1317 1850 6097 Core 2903 | . . 110 10 . 107 95 40 . 480 35 . 60 . . 59 . 118 . . 8 102 56 60 . 76 62 1425 Absorbed by Shields 6775 | . . . 16 . 338 356 94 . . . . . . . . . 479 . . 162 79 429 498 . 991 1273 2060 Reduced by Siege Mode 707 | . . . . . . . . . 114 . 12 94 . . . . . . . . 3 . 82 . 83 97 222 Ignored by Resistances 3550 | . . . . . . . . . 1443 . . . . . . . 77 . . . . . . . 164 966 900 Regen/Repaired (Parts) 5471 | . . . . 292 125 119 57 92 180 147 67 284 15 64 169 37 1096 31 72 142 435 299 421 143 375 564 245 Core Remaining (%) 75 | 100 . . . 52 . . . . 15 . . . . 90 . . . . . . 75 . . 100 94 . . Volleys Fired 1155 | 8 4 73 38 . 50 53 8 23 138 14 15 29 . 27 33 29 48 35 7 20 56 36 64 7 115 91 134 Largest 6 | 2 1 2 2 . 3 3 2 3 3 3 3 3 . 3 4 4 4 3 3 4 4 4 4 1 4 6 6 Hottest 441 | 70 100 160 140 . 198 240 99 240 240 102 107 107 . 102 136 136 202 161 169 260 290 290 300 120 240 441 415 Shots Fired 2885 | 16 4 106 52 . 118 155 11 52 346 31 46 85 . 31 63 114 172 43 15 39 148 101 221 7 274 324 311 Gun 2419 | 16 . 39 18 . 96 152 3 41 310 27 46 85 . 7 40 108 150 43 15 34 148 96 211 . 205 287 242 Cannon 396 | . . 53 34 . 19 2 3 . 34 2 . . . 24 23 6 22 . . 1 . . 8 7 65 37 56 Launcher 25 | . . . . . 3 . 3 . . . . . . . . . . . . 4 . . . . 2 . 13 Special 45 | . 4 14 . . . 1 2 11 2 2 . . . . . . . . . . . 5 2 . 2 . . Kinetic 1591 | 8 . 17 3 . 62 39 2 27 203 27 46 85 . 7 40 108 144 11 9 22 58 24 176 . 205 135 133 Thermal 856 | 8 4 89 45 . 46 115 1 14 120 2 . . . 2 7 6 28 32 6 14 48 20 25 7 65 92 60 Explosive 15 | . . . . . . . . . . . . . . . . . . . . . . . . . 2 . 13 Electromagnetic 378 | . . . 4 . 10 . 6 . 21 . . . . 22 16 . . . . 2 42 52 18 . . 94 91 Entropic 18 | . . . . . . . . . . . . . . . . . . . . 1 . . . . . 3 14 Robot Hit Streak 40 | 4 . 15 6 . 12 14 10 19 35 35 38 24 . 19 14 23 16 8 10 22 22 11 40 . 31 39 39 Robot Miss Streak 9 | 1 . 3 2 . 4 5 . 2 5 . 1 1 . 1 1 3 3 1 1 1 4 2 2 . 2 9 3 Penetration Max 2 | . . . . . 2 2 . 1 1 . . 2 . . 1 1 1 . . 2 1 1 2 . 2 2 2 Secondary Targets 60 | . . . . . 3 9 . . 9 . . 5 . . 1 . 1 3 . . 3 1 8 . 4 9 4 Max Gunslinging Chain 2 | . . . . . 1 1 . . 1 . . 1 . . 1 . 1 2 . . 1 1 1 . 1 1 1 Shots Hit Robots 2030 | 11 . 38 28 . 69 135 24 35 265 28 34 71 . 9 41 85 119 43 21 25 83 69 139 . 196 223 239 Core Hits 1028 | 4 2 16 11 . 38 134 8 20 162 8 11 31 . 7 19 17 45 19 11 12 32 20 79 . 99 97 126 Critical Kills 88 | . . 1 1 . 1 . . . 8 2 2 2 . . 1 2 5 1 . . 2 1 18 . 22 15 4 Critical Parts Destroyed 128 | . . . . . 3 2 1 1 11 . 4 5 . . . . 11 . 1 2 3 . 25 . 29 21 9 Critical Strikes 264 | 1 . 1 1 . 4 3 2 1 22 3 6 7 . 1 3 4 19 7 1 3 9 6 45 . 54 44 17 Burn 19 | 1 . . . . . 1 . . . . . . . . . . 2 6 . 1 2 4 . . . 1 1 Meltdown 6 | . . 1 . . . . . . . . . . . . . . . . . . . . . . 3 . 2 Destroy 223 | . . . 1 . 4 2 1 1 19 3 6 7 . . 2 4 17 1 1 2 6 1 43 . 51 38 13 Corrupt 14 | . . . . . . . . . 3 . . . . 1 1 . . . . . 1 1 1 . . 5 1 Sever 2 | . . . . . . . 1 . . . . . . . . . . . . . . . 1 . . . . Melee Attacks 56 | . . . . . . . 16 . 1 5 . . . . 5 . . 13 14 . . . 1 . . . 1 Impact 1 | . . . . . . . . . . . . . . . . . . . . . . . . . . . 1 Slashing 34 | . . . . . . . 16 . 1 5 . . . . 5 . . . 6 . . . 1 . . . . Piercing 21 | . . . . . . . . . . . . . . . . . . 13 8 . . . . . . . . Sneak Attacks 26 | . . . . . . . 16 . . 1 . . . . 1 . . 4 4 . . . . . . . . Combat Hostiles 6 | . . . . . . . . . . . . . . . . . . 4 2 . . . . . . . . Follow-up Attacks . | . . . . . . . . . . . . . . . . . . . . . . . . . . . . Damage Inflicted 76041 | 115 12 879 804 . 2467 4453 1515 992 8539 872 787 2195 . 613 1739 2636 3969 886 618 1048 2469 1933 3717 . 7662 8337 16784 Guns 53331 | 115 . 343 241 . 1906 4420 92 992 6120 636 787 2195 . 80 800 2473 3326 852 298 1048 2469 1933 3498 . 4944 6791 6972 Cannons 16080 | . . 536 535 . 302 32 40 . 1668 37 . . . 533 862 163 490 . . . . . 171 . 2125 1326 7260 Explosions 4830 | . . . . . 259 . 368 . 743 . . . . . . . 153 . . . . . . . 592 220 2495 Melee 1750 | . . . . . . . 1015 . . 199 . . . . 77 . . 34 320 . . . 48 . . . 57 Ramming 50 | . 12 . 28 . . 1 . . 8 . . . . . . . . . . . . . . . 1 . . Kinetic 37599 | 40 . 188 31 . 1561 1686 59 668 3708 636 787 2195 . 80 800 2473 3196 156 181 804 1283 649 2942 . 4944 3688 4844 Thermal 17270 | 75 . 691 682 . 644 2766 33 324 2706 37 . . . 34 70 163 773 696 117 187 449 337 476 . 2125 2217 1668 Explosive 3307 | . . . . . . . . . . . . . . . . . . . . . . . . . 592 220 2495 Electromagnetic 9701 | . . . 63 . 262 . 408 . 2117 . . . . 499 792 . . . . 57 737 947 251 . . 1764 1804 Impact 57 | . . . . . . . . . . . . . . . . . . . . . . . . . . . 57 Slashing 1644 | . . . . . . . 1015 . . 199 . . . . 77 . . . 305 . . . 48 . . . . Piercing 49 | . . . . . . . . . . . . . . . . . . 34 15 . . . . . . . . Entropic 6364 | . . . . . . . . . . . . . . . . . . . . . . . . . . 448 5916 Highest Corruption 37 | . . . . . 11 12 8 8 17 2 2 2 2 2 . 15 16 16 16 16 1 . 3 3 4 6 37 Average Corruption 7 | . . . . . 6 9 8 7 7 2 2 2 2 2 . 11 15 16 16 16 1 . 2 3 3 4 11 Corruption Purged 15 | . . . . . . 7 . 8 . . . . . . . . . . . . . . . . . . . Corruption Blocked . | . . . . . . . . . . . . . . . . . . . . . . . . . . . . Effects 413 | . . . . . 21 53 16 11 53 6 6 9 3 6 . 10 48 41 25 1 . . 8 8 17 20 51 Message Errors 93 | . . . . . 3 12 6 4 13 . 2 4 . 4 . 2 3 12 8 1 . . 3 2 2 3 9 Matter Fused 89 | . . . . . 6 15 3 3 16 2 1 1 . 1 . . 9 7 5 . . . . 2 5 5 8 Heat Flow Errors 44 | . . . . . 5 7 2 2 3 . . . 2 . . . 4 6 3 . . . 1 . 4 1 4 Energy Discharges 42 | . . . . . 1 2 2 1 . 1 1 2 1 1 . 1 8 2 3 . . . 1 1 1 4 9 Parts Rejected 9 | . . . . . 1 . 1 . 2 . . . . . . 1 2 . . . . . . . 1 . 1 Parts Fused 4 | . . . . . . . . . 1 . . 2 . . . . . . . . . . . 1 . . . Data Loss (minor) 58 | . . . . . 4 8 1 . 11 1 1 . . . . . 8 9 1 . . . 3 1 1 2 7 Data Loss (major) 11 | . . . . . 1 1 . . 1 . . . . . . . 1 2 1 . . . . . . 2 2 Misfires 18 | . . . . . . 2 1 1 1 1 1 . . . . 2 3 1 . . . . . . 2 . 3 Alerts 8 | . . . . . . 2 . . . 1 . . . . . . 1 . 1 . . . . 1 . 1 1 Misdirections 4 | . . . . . . . . . . . . . . . . . 2 . 1 . . . . . . . 1 Weapon Failures 33 | . . . . . . 4 . . 5 . . . . . . 4 7 2 2 . . . . . 1 2 6 Overload Shots 1 | . . . . . . . . . 1 . . . . . . . . . . . . . . . . . . Overflow Damage 1242 | . . 22 28 . . . 111 . 58 86 . . . 19 . . . . 95 . . . . . 38 467 318 Projectiles 878 | . . 22 28 . . . . . 15 . . . . 19 . . . . . . . . . . 38 467 289 Explosions 72 | . . . . . . . . . 43 . . . . . . . . . . . . . . . . . 29 Melee 292 | . . . . . . . 111 . . 86 . . . . . . . . 95 . . . . . . . . Knockbacks 1 | . . . . . . . . . . . . . . . . . . . . . . . . . . . 1 Impact 1 | . . . . . . . . . . . . . . . . . . . . . . . . . . . 1 Kinetic . | . . . . . . . . . . . . . . . . . . . . . . . . . . . . Secondary . | . . . . . . . . . . . . . . . . . . . . . . . . . . . . Self-Inflicted Damage 187 | . . . . . 22 . . . 91 74 . . . . . . . . . . . . . . . . . Shots 4 | . . . . . 1 . . . 1 2 . . . . . . . . . . . . . . . . . Rammed 12 | . 3 . 6 . . 1 . . 1 . . . . . . . . . . . . . . . 1 . . Targets Rammed 13 | . 4 . 6 . . 1 . . 1 . . . . . . . . . . . . . . . 1 . . Kicked . | . . . . . . . . . . . . . . . . . . . . . . . . . . . . Crushed 1 | . 1 . . . . . . . . . . . . . . . . . . . . . . . . . . Highest Temperature 552 | 90 60 216 362 . 266 396 253 174 258 310 262 222 248 230 465 368 398 274 198 552 369 467 372 174 360 467 348 Average Temperature 103 | 32 25 56 93 . 96 82 112 86 96 107 83 104 106 97 118 156 71 122 77 114 128 159 108 60 100 125 113 Received Heat Transfer 3321 | . . 189 66 . 166 333 30 . 465 90 36 309 . 45 229 . 195 . 27 56 224 71 102 . 141 303 244 Effects 17 | . . . . . . 1 . . . 1 1 . . . 2 . . 5 . 1 . 2 2 . . 2 . Shutdowns 4 | . . . . . . 1 . . . . . . . . 1 . . . . . . 1 . . . 1 . Energy Bleed 4 | . . . . . . . . . . . 1 . . . . . . . . . . 1 1 . . 1 . Interference 5 | . . . . . . . . . . . . . . . . . . 5 . . . . . . . . . Short Circuit 1 | . . . . . . . . . . . . . . . . . . . . . . . 1 . . . . Damage (minor) 3 | . . . . . . . . . . 1 . . . . 1 . . . . 1 . . . . . . . Siege Activations 34 | . . . . . . . . . 5 1 1 1 . . . . 1 . . . 1 . 5 . 8 7 4 Total Turns 879 | . . . . . . . . . 162 8 10 48 . . . . 19 . . . 116 . 90 . 183 128 115 Longest Duration 116 | . . . . . . . . . 87 8 10 48 . . . . 19 . . . 116 . 35 . 60 48 38 Robots Corrupted 25 | . . . . . 1 . 1 . 9 . . . . 1 1 . . . . . 2 3 . . . 4 3 Combat Hostiles 24 | . . . . . 1 . 1 . 8 . . . . 1 1 . . . . . 2 3 . . . 4 3 Parts Fried 84 | . . . . . . . . . 16 . . . . 3 10 1 . . . . 6 8 . . . 26 14 Impact Corruptions . | . . . . . . . . . . . . . . . . . . . . . . . . . . . . Robots Melted 15 | . . 1 . . . . . . 5 . . . . . . . 1 2 . . 1 . . . 3 . 2 Combat Hostiles 15 | . . 1 . . . . . . 5 . . . . . . . 1 2 . . 1 . . . 3 . 2 Parts Melted 54 | 1 . 4 1 . 3 7 . 1 7 . . . . . . . 5 3 . . 5 1 6 . 5 5 . Heat Transferred 27719 | 296 . 916 878 . 1122 6018 75 730 5805 50 . . . 50 100 250 1225 1837 148 450 1000 1000 698 . 1664 2314 1093 Parts Sabotaged 1 | . . . . . . . . . 1 . . . . . . . . . . . . . . . . . . Parts Stolen . | . . . . . . . . . . . . . . . . . . . . . . . . . . . . Parts Stripped . | . . . . . . . . . . . . . . . . . . . . . . . . . . . . Power Chain Reactions 1 | . . . . . 1 . . . . . . . . . . . . . . . . . . . . . . Alert | -11 -10 -10 -9 -9 -6 -6 -6 -6 -6 -5 -5 -5 -5 -4 -4 -4 -4 -4 -4 -4 -3 -3 -3 -3 -2 -1 -1 ------- Run | Yrd Mat Sub Rec Scr Fac Ext Cet Arc Hub Fac Upp Upp Zhi Pro Fac Was Fac Upp Upp War Pro Res Arm Lab Res Acc Com Peak Influence 2180 | 10 11 . 120 . 273 2180 1486 753 2082 1519 . . . . 749 288 669 . . . . 520 1534 . 1352 1466 1448 Initial 1220 | . 6 . 16 . . . 1220 514 . 1100 . . . . . 219 201 . . . . 213 46 . . 744 937 Average 500 | 2 6 . 30 . 90 557 1405 223 1003 1267 . . . . 436 258 376 . . . . 215 945 . 699 914 1247 Maximum Alert Level 5 | . . . . . 1 5 4 3 5 4 . . . . 3 1 2 . . . . 2 4 . 4 4 4 Low Security (%) 40 | 100 100 . 100 . 80 40 . 55 1 . . . . . 29 . . . . . . 53 11 . 14 . . Level 1 12 | . . . . . 19 18 . 17 6 . . . . . 1 100 63 . . . . 27 1 . 4 1 . Level 2 13 | . . . . . . 7 . 22 4 . . . . . 65 . 36 . . . . 18 12 . 30 24 . Level 3 15 | . . . . . . 20 . 4 50 25 . . . . 3 . . . . . . . 33 . 35 39 20 Level 4 16 | . . . . . . 5 100 . 33 74 . . . . . . . . . . . . 39 . 15 33 79 Level 5 . | . . . . . . 7 . . 1 . . . . . . . . . . . . . . . . . . High Security . | . . . . . . . . . 1 . . . . . . . . . . . . . . . . . . Max Security . | . . . . . . . . . . . . . . . . . . . . . . . . . . . . Squads Dispatched 102 | . . . . . 8 9 . . 25 4 . 1 . . 6 . 8 . . . . 3 8 . 12 12 6 Investigation 17 | . . . . . 2 3 . . . 1 . . . . 3 . 3 . . . . 3 . . 1 1 . Extermination 13 | . . . . . 1 . . . 4 . . . . . . . 2 . . . . . 2 . 1 2 1 Reinforcement 32 | . . . . . 2 3 . . 10 1 . . . . . . 2 . . . . . 3 . 6 4 1 Assault 30 | . . . . . . 3 . . 8 2 . 1 . . 3 . 1 . . . . . 3 . 3 2 4 Garrison 10 | . . . . . 3 . . . 3 . . . . . . . . . . . . . . . 1 3 . Intercept . | . . . . . . . . . . . . . . . . . . . . . . . . . . . . Searches Triggered . | . . . . . . . . . . . . . . . . . . . . . . . . . . . . Construction Impeded 10 | . . . . . . 2 . . 3 . . . . . . . . . . . . . . . 2 3 . Haulers Reinforced 5 | . . . . . 2 . . . 1 . . . . . . . . . . . . . . . 1 1 . Active Scanning Responses . | . . . . . . . . . . . . . . . . . . . . . . . . . . . . Cargo Convoy Interrupts . | . . . . . . . . . . . . . . . . . . . . . . . . . . . . Stealth | -11 -10 -10 -9 -9 -6 -6 -6 -6 -6 -5 -5 -5 -5 -4 -4 -4 -4 -4 -4 -4 -3 -3 -3 -3 -2 -1 -1 --------- Run | Yrd Mat Sub Rec Scr Fac Ext Cet Arc Hub Fac Upp Upp Zhi Pro Fac Was Fac Upp Upp War Pro Res Arm Lab Res Acc Com Distress Signals 28 | . . . 1 . 3 1 2 . 3 1 . . . . 1 . 1 . . 2 1 4 2 . 1 4 1 Communications Jammed . | . . . . . . . . . . . . . . . . . . . . . . . . . . . . Distress Signals . | . . . . . . . . . . . . . . . . . . . . . . . . . . . . Times Spotted 687 | . . 18 4 . 22 65 10 11 81 6 11 15 . 8 24 6 40 18 7 50 25 37 56 . 61 63 49 Peak Tracking Total 18 | . 1 3 1 . 3 11 5 1 7 3 4 8 . 5 5 1 9 9 4 18 6 7 6 . 8 8 10 Tactical Retreats 35 | . . 2 . . . 4 . . 3 1 . . . 2 2 . 2 3 2 1 3 2 1 . 1 3 3 Traps | -11 -10 -10 -9 -9 -6 -6 -6 -6 -6 -5 -5 -5 -5 -4 -4 -4 -4 -4 -4 -4 -3 -3 -3 -3 -2 -1 -1 ------- Run | Yrd Mat Sub Rec Scr Fac Ext Cet Arc Hub Fac Upp Upp Zhi Pro Fac Was Fac Upp Upp War Pro Res Arm Lab Res Acc Com Traps Triggered 18 | . . 1 . . 6 . . . 1 1 . . . . 2 . 3 . . 1 . . . . . 3 . Indirectly 1 | . . . . . . . . . 1 . . . . . . . . . . . . . . . . . . Trap Hack Attempts . | . . . . . . . . . . . . . . . . . . . . . . . . . . . . Triggered . | . . . . . . . . . . . . . . . . . . . . . . . . . . . . Disarmed . | . . . . . . . . . . . . . . . . . . . . . . . . . . . . Reprogrammed . | . . . . . . . . . . . . . . . . . . . . . . . . . . . . Reused . | . . . . . . . . . . . . . . . . . . . . . . . . . . . . Traps Extracted . | . . . . . . . . . . . . . . . . . . . . . . . . . . . . Installed . | . . . . . . . . . . . . . . . . . . . . . . . . . . . . Triggered 12 | . . . . . . . . . . . 1 . . . . . . 3 1 7 . . . . . . . Machines | -11 -10 -10 -9 -9 -6 -6 -6 -6 -6 -5 -5 -5 -5 -4 -4 -4 -4 -4 -4 -4 -3 -3 -3 -3 -2 -1 -1 ---------- Run | Yrd Mat Sub Rec Scr Fac Ext Cet Arc Hub Fac Upp Upp Zhi Pro Fac Was Fac Upp Upp War Pro Res Arm Lab Res Acc Com Machines Disabled 70 | . . . . . 1 . . 4 11 11 4 2 . 2 8 . 5 . . 2 3 . 5 2 7 2 1 Max in Single Turn 9 | . . . . . 1 . . 1 4 9 1 1 . 1 1 . 2 . . 1 1 . 1 1 1 1 1 Garrison Access 4 | . . . . . . . . . . . . . . . 1 . . . . . . 1 . . 1 1 . Network Hub 4 | . . . . . . . . . 4 . . . . . . . . . . . . . . . . . . Energy Cycler 1 | . . . . . . . . . . . . . . . . . . . . . . . . . . 1 . Machines Repaired . | . . . . . . . . . . . . . . . . . . . . . . . . . . . . Machines Dismantled . | . . . . . . . . . . . . . . . . . . . . . . . . . . . . Machines Sabotaged . | . . . . . . . . . . . . . . . . . . . . . . . . . . . . Overloaded Fab Kills 3 | . . . . . . . . . . . . . . . . . 3 . . . . . . . . . . Hacking | -11 -10 -10 -9 -9 -6 -6 -6 -6 -6 -5 -5 -5 -5 -4 -4 -4 -4 -4 -4 -4 -3 -3 -3 -3 -2 -1 -1 --------- Run | Yrd Mat Sub Rec Scr Fac Ext Cet Arc Hub Fac Upp Upp Zhi Pro Fac Was Fac Upp Upp War Pro Res Arm Lab Res Acc Com Machines Accessed 105 | . . 4 11 3 10 12 . . 12 2 . . 5 1 7 . 6 1 . 2 1 11 8 . 3 5 1 Terminals 53 | . . . 6 . 4 9 . . 12 1 . . . 1 5 . 1 . . . 1 7 2 . 1 2 1 Fabricators 10 | . . . . . 1 . . . . . . . . . . . 2 . . . . 1 6 . . . . Repair Stations 7 | . . . . . 3 1 . . . . . . . . . . 2 . . . . 1 . . . . . Recycling Units 16 | . . . 5 . 1 2 . . . 1 . . . . 2 . 1 . . . . 1 . . 1 2 . Scanalyzers 1 | . . . . . 1 . . . . . . . . . . . . . . . . . . . . . . Garrison Access 3 | . . . . . . . . . . . . . . . . . . . . . . 1 . . 1 1 . Total Hacks 450 | . . 7 31 31 34 29 . . 52 17 . . 19 6 42 . 40 1 . 2 6 68 34 . 13 17 1 Successful 261 | . . 7 19 31 24 14 . . 21 6 . . 19 6 13 . 20 1 . 2 6 37 20 . 5 9 1 Failed 189 | . . . 12 . 10 15 . . 31 11 . . . . 29 . 20 . . . . 31 14 . 8 8 . Catastrophic 32 | . . . 1 . 1 1 . . 4 4 . . . . 9 . 2 . . . . 4 2 . 3 1 . Database Lockouts . | . . . . . . . . . . . . . . . . . . . . . . . . . . . . Manual 208 | . . . 23 . 12 18 1 . 33 13 . . . . 24 . 13 . . . . 37 27 . 6 1 . Terminals 254 | . . . 18 . 14 24 . . 52 14 . . . 6 35 . 11 . . . 6 48 12 . 2 11 1 Fabricators 46 | . . . . . 9 . . . . . . . . . . . 9 . . . . 6 22 . . . . Repair Stations 36 | . . . . . 8 2 . . . . . . . . . . 15 . . . . 11 . . . . . Recycling Units 44 | . . . 13 . 1 3 . . . 3 . . . . 7 . 5 . . . . 2 . . 6 4 . Scanalyzers 2 | . . . . . 2 . . . . . . . . . . . . . . . . . . . . . . Garrison Access 8 | . . . . . . . . . . . . . . . . . . . . . . 1 . . 5 2 . Terminal Hacks 134 | . . 7 2 31 4 4 . . 12 4 . . 19 6 4 . 5 1 . 2 6 17 3 . . 6 1 Record 49 | . . 4 . 25 . . . . . . . . 7 6 . . . . . 1 6 . . . . . . Part Schematic 7 | . . . 1 . . . . . . . . . 4 . . . . . . . . 2 . . . . . Robot Schematic 3 | . . . . . . . . . 1 . . . . . . . . . . . . 2 . . . . . Robot Analysis 13 | . . . 1 6 . . . . . . . . 4 . . . 1 . . . . 1 . . . . . Prototype ID Bank 5 | . . . . . . . . . . . . . 4 . . . . . . . . 1 . . . . . Open Door 8 | . . 1 . . . 3 . . . . . . . . . . . 1 . 1 . . 1 . . . 1 Branch Access Points 1 | . . . . . . . . . . . . . . . . . 1 . . . . . . . . . . Machine Index 1 | . . . . . . . . . . . . . . . . . . . . . . . . . . 1 . Terminal Index 3 | . . . . . . . . . 1 . . . . . 1 . . . . . . 1 . . . . . Recycling Unit Index 1 | . . . . . . . . . . . . . . . . . . . . . . 1 . . . . . Alert Level 9 | . . . . . 1 . . . 2 1 . . . . 2 . 1 . . . . 1 . . . 1 . Unreport Threat 17 | . . . . . 1 . . . 4 3 . . . . 1 . 2 . . . . 2 1 . . 3 . Locate Traps 3 | . . . . . 1 1 . . 1 . . . . . . . . . . . . . . . . . . Patrol Status 1 | . . . . . . . . . . . . . . . . . . . . . . 1 . . . . . Hauler Manifests 1 | . . . . . . . . . . . . . . . . . . . . . . 1 . . . . . Zone Layout 10 | . . . . . 1 . . . 3 . . . . . . . . . . . . 4 1 . . 1 . Derelict Proto ID Bank 1 | . . 1 . . . . . . . . . . . . . . . . . . . . . . . . . Release Object 1 | . . 1 . . . . . . . . . . . . . . . . . . . . . . . . . Fabricator Hacks 16 | . . . . . 7 . . . . . . . . . . . 3 . . . . 3 3 . . . . Network Status 6 | . . . . . 1 . . . . . . . . . . . 1 . . . . 1 3 . . . . Load Schematic 5 | . . . . . 3 . . . . . . . . . . . 1 . . . . 1 . . . . . Build 5 | . . . . . 3 . . . . . . . . . . . 1 . . . . 1 . . . . . Repair Station Hacks 20 | . . . . . 5 2 . . . . . . . . . . 7 . . . . 6 . . . . . Scan Component 13 | . . . . . 3 1 . . . . . . . . . . 5 . . . . 4 . . . . . Repair 7 | . . . . . 2 1 . . . . . . . . . . 2 . . . . 2 . . . . . Recycling Unit Hacks 14 | . . . 5 . . . . . . 1 . . . . 3 . 1 . . . . 1 . . 2 1 . Process 1 | . . . . . . . . . . . . . . . . . . . . . . . . . 1 . . Retrieve Matter 4 | . . . . . . . . . . 1 . . . . 2 . . . . . . . . . 1 . . Retrieve Components 9 | . . . 5 . . . . . . . . . . . 1 . 1 . . . . 1 . . . 1 . Scanalyzer 2 | . . . . . 2 . . . . . . . . . . . . . . . . . . . . . . Insert Component 1 | . . . . . 1 . . . . . . . . . . . . . . . . . . . . . . Analyze 1 | . . . . . 1 . . . . . . . . . . . . . . . . . . . . . . Garrison Access Hacks 3 | . . . . . . . . . . . . . . . . . . . . . . 1 . . 1 1 . Seal Access 3 | . . . . . . . . . . . . . . . . . . . . . . 1 . . 1 1 . Unauthorized Hacks 72 | . . . 12 . 6 8 . . 9 1 . . . . 6 . 4 . . . . 9 14 . 2 1 . Terminals 43 | . . . 8 . 5 6 . . 9 . . . . . 4 . . . . . . 7 4 . . . . Track 3 | . . . . . . . . . 2 . . . . . . . . . . . . . 1 . . . . Botnet 12 | . . . 3 . 2 1 . . 1 . . . . . 2 . . . . . . 2 1 . . . . Operators 5 | . . . . . 1 1 . . 1 . . . . . . . . . . . . 1 1 . . . . Skim 23 | . . . 5 . 2 4 . . 5 . . . . . 2 . . . . . . 4 1 . . . . Fabricators 14 | . . . . . . . . . . . . . . . . . 3 . . . . 1 10 . . . . Prioritize 2 | . . . . . . . . . . . . . . . . . 1 . . . . 1 . . . . . Liberate 5 | . . . . . . . . . . . . . . . . . 1 . . . . . 4 . . . . Fabnet 6 | . . . . . . . . . . . . . . . . . . . . . . . 6 . . . . Overload 1 | . . . . . . . . . . . . . . . . . 1 . . . . . . . . . . Repair Stations 10 | . . . . . 1 2 . . . 1 . . . . 2 . 1 . . . . 1 . . 1 1 . Mechanics 1 | . . . . . . . . . . . . . . . . . 1 . . . . . . . . . . Recycling Units 5 | . . . 4 . . . . . . . . . . . . . . . . . . . . . 1 . . Recyclers 1 | . . . . . . . . . . . . . . . . . . . . . . . . . 1 . . Tunnel 4 | . . . 4 . . . . . . . . . . . . . . . . . . . . . . . . Fedlink 1 | . . . . . . 1 . . . . . . . . . . . . . . . . . . . . . Scrapoids 8 | . . . . . 1 1 . . . 1 . . . . 2 . . . . . . 1 . . 1 1 . Scanalyzers . | . . . . . . . . . . . . . . . . . . . . . . . . . . . . Garrison Access . | . . . . . . . . . . . . . . . . . . . . . . . . . . . . Data Cores Recovered . | . . . . . . . . . . . . . . . . . . . . . . . . . . . . Used . | . . . . . . . . . . . . . . . . . . . . . . . . . . . . Hacking Detections 67 | . . . 6 . 6 9 . . 12 2 . . . . 5 . 5 . . . 1 9 7 . 2 3 . Full Trace Events 7 | . . . 1 . 1 1 . . . . . . . . 1 . 2 . . . . 1 . . . . . Feedback Events 1 | . . . . . . 1 . . . . . . . . . . . . . . . . . . . . . Corruption 1 | . . . . . . 1 . . . . . . . . . . . . . . . . . . . . . Feedback Blocked . | . . . . . . . . . . . . . . . . . . . . . . . . . . . . Robot Schematics Acquired 3 | . . . . . . . . . 1 . . . . . . . . . . . . 2 . . . . . Robots Built . | . . . . . . . . . . . . . . . . . . . . . . . . . . . . Authchips . | . . . . . . . . . . . . . . . . . . . . . . . . . . . . Time . | . . . . . . . . . . . . . . . . . . . . . . . . . . . . Total Robot Build Rating . | . . . . . . . . . . . . . . . . . . . . . . . . . . . . Part Schematics Acquired 38 | . . . 1 9 11 8 1 . 2 . . . 4 . . . . . . . . 2 . . . . . Parts Built 5 | . . . . . 3 . . . . . . . . . . . 1 . . . . 1 . . . . . Authchips 3 | . . . . . 3 . . . . . . . . . . . . . . . . . . . . . . Time 203 | . . . . . 136 . . . . . . . . . . . 46 . . . . 21 . . . . . Total Part Build Rating 29 | . . . . . 14 . . . . . . . . . . . 7 . . . . 8 . . . . . Parts Repaired 7 | . . . . . 2 1 . . . . . . . . . . 2 . . . . 2 . . . . . Time 399 | . . . . . 91 32 . . . . . . . . . . 214 . . . . 62 . . . . . Parts Recycled . | . . . . . . . . . . . . . . . . . . . . . . . . . . . . Recycled Matter . | . . . . . . . . . . . . . . . . . . . . . . . . . . . . Retrieved Matter 222 | . . . . . . . . . . . . . . . 222 . . . . . . . . . . . . Retrieved Components 30 | . . . 15 . . . . . . . . . . . 3 . 1 . . . . 10 . . . 1 . Parts Scanalyzed 1 | . . . . . 1 . . . . . . . . . . . . . . . . . . . . . . Part Schematics Acquired 1 | . . . . . 1 . . . . . . . . . . . . . . . . . . . . . . Parts Damaged 1 | . . . . . 1 . . . . . . . . . . . . . . . . . . . . . . Bothacking | -11 -10 -10 -9 -9 -6 -6 -6 -6 -6 -5 -5 -5 -5 -4 -4 -4 -4 -4 -4 -4 -3 -3 -3 -3 -2 -1 -1 ------------ Run | Yrd Mat Sub Rec Scr Fac Ext Cet Arc Hub Fac Upp Upp Zhi Pro Fac Was Fac Upp Upp War Pro Res Arm Lab Res Acc Com Used RIF Installer . | . . . . . . . . . . . . . . . . . . . . . . . . . . . . Robots Hacked 26 | . . . . . . . . 4 1 1 . . . . . . . . . . . 2 1 . 7 1 9 Non-combat 5 | . . . . . . . . 1 1 1 . . . . . . . . . . . . 1 . 1 . . Combat 16 | . . . . . . . . . . . . . . . . . . . . . . . . . 6 1 9 Robot Hacks Applied 5 | . . . . . . . . 1 1 1 . . . . . . . . . . . . 1 . 1 . . parse_system 1 | . . . . . . . . . 1 . . . . . . . . . . . . . . . . . . find_chute 1 | . . . . . . . . . . 1 . . . . . . . . . . . . . . . . . check_alert 3 | . . . . . . . . 1 . . . . . . . . . . . . . . 1 . 1 . . Manual 9 | . . . . . . . . 4 1 . . . . . . . . . . . . 2 1 . 1 . . Relay Couplers Released 4 | . . . . . . . . . . . . . . . 3 . . . . . . . . . 1 . . Machine Destruction 4 | . . . . . . . . . . . . . . . 3 . . . . . . . . . 1 . . Fabnet Peak Effective % 15 | . . . . . . . . . . . . . . . . . . . . . . . . . 15 6 6 Autooverrided 16 | . . . . . . . . . . . . . . . . . . . . . . . . . 6 1 9 Robots Rewired 30 | . . . 5 . . 9 . . . 1 . 4 . . . . . 2 . 5 . . 4 . . . . Allies Hacked 2 | . . . . . . . . . 1 . . . . . . . . . . . . . . . 1 . . Hacks Repelled 2 | . . . . . . . . . . . . . . . . . . . . . . . 2 . . . . Allies | -11 -10 -10 -9 -9 -6 -6 -6 -6 -6 -5 -5 -5 -5 -4 -4 -4 -4 -4 -4 -4 -3 -3 -3 -3 -2 -1 -1 -------- Run | Yrd Mat Sub Rec Scr Fac Ext Cet Arc Hub Fac Upp Upp Zhi Pro Fac Was Fac Upp Upp War Pro Res Arm Lab Res Acc Com Total Allies 113 | . . . 5 . 5 23 5 4 1 6 . 4 . . 10 . 2 4 . 5 . 7 5 . 12 6 9 Largest Group 15 | . . . 5 5 6 14 15 15 15 5 5 4 4 4 5 3 3 2 2 4 . 6 10 . 6 5 2 Highest-Rated Group 972 | . . . 78 78 150 644 972 875 875 235 235 90 90 90 241 144 141 106 77 248 . 365 565 . 378 323 164 Highest-Rated Ally 159 | . . . 27 27 28 159 159 96 96 49 47 30 30 30 50 50 49 106 47 68 . 64 64 . 69 67 89 Total Orders 96 | . . . 4 7 4 . . 2 4 5 10 1 1 2 8 . . 18 9 11 . . . . 9 1 . STAY 12 | . . . . 1 1 . . 1 1 . 4 . . . . . . 1 . 3 . . . . . . . FOLLOW 7 | . . . . 1 . . . 1 3 . 2 . . . . . . . . . . . . . . . . DROP 3 | . . . 1 1 1 . . . . . . . . . . . . . . . . . . . . . . PICKUP 1 | . . . 1 . . . . . . . . . . . . . . . . . . . . . . . . COLLECT 2 | . . . 2 . . . . . . . . . . . . . . . . . . . . . . . . EXPLORE 33 | . . . . 2 1 . . . . 1 2 . . 1 5 . . 5 5 4 . . . . 6 1 . RETURN 38 | . . . . 2 1 . . . . 4 2 1 1 1 3 . . 12 4 4 . . . . 3 . . Ally Attacks 1175 | . . . 1 . 21 273 72 29 148 5 36 . . 5 77 80 31 74 10 9 . . 119 . 110 65 10 Total Damage 29940 | . . . 32 . 443 5363 1470 678 5491 281 903 . . 198 1404 1666 805 1475 246 405 . . 3852 . 3083 1920 225 Kills 161 | . . . . . 3 37 9 3 36 1 11 . . 1 7 . 4 6 1 1 . . 18 . 12 9 2 Allies Corrupted 4 | . . . . . . 1 . . . . . . . . . . . . . . . . . . 3 . . Allies Melted 2 | . . . . . . . . . . . . . . . . . . 1 . 1 . . . . . . . Intel | -11 -10 -10 -9 -9 -6 -6 -6 -6 -6 -5 -5 -5 -5 -4 -4 -4 -4 -4 -4 -4 -3 -3 -3 -3 -2 -1 -1 ------- Run | Yrd Mat Sub Rec Scr Fac Ext Cet Arc Hub Fac Upp Upp Zhi Pro Fac Was Fac Upp Upp War Pro Res Arm Lab Res Acc Com Robot Analysis Total 13 | . . . 1 6 . . . . . . . . 4 . . . 1 . . . . 1 . . . . . Derelict Logs Recovered 7 | . . . . 3 . . . . . . 1 . . 2 . . . . 1 . . . . . . . . Drone Launches 70 | . . . . 6 3 . . . . 6 6 7 . 3 10 . . 14 3 4 . . . . 6 1 1 Drone Recoveries 66 | . . . . 6 3 . . . . 6 6 4 3 3 8 . . 13 3 4 . . . . 5 1 1 Exploration | -11 -10 -10 -9 -9 -6 -6 -6 -6 -6 -5 -5 -5 -5 -4 -4 -4 -4 -4 -4 -4 -3 -3 -3 -3 -2 -1 -1 ------------- Run | Yrd Mat Sub Rec Scr Fac Ext Cet Arc Hub Fac Upp Upp Zhi Pro Fac Was Fac Upp Upp War Pro Res Arm Lab Res Acc Com Turns Passed 38998 | 79 141 4206 3176 7554 1240 1555 501 4483 2252 443 506 652 242 528 616 200 1045 932 551 997 1020 1105 1063 649 1223 916 1123 Spaces Moved 18859 | 40 63 2207 1273 3226 795 909 237 667 1137 262 310 414 158 279 403 135 549 626 432 773 670 766 621 364 588 393 562 Core 439 | 19 . . . 225 . . . 177 . . . . . . . . . . . . . . . . . . 18 Treads 4619 | 21 63 1667 1213 1282 . . 84 . 186 . . 9 . . . . 94 . . . . . . . . . . Legs . | . . . . . . . . . . . . . . . . . . . . . . . . . . . . Wheels 13797 | . . 540 60 1719 795 909 153 490 951 262 310 405 158 279 403 135 455 626 432 773 670 766 621 364 588 393 540 Hover 4 | . . . . . . . . . . . . . . . . . . . . . . . . . . . 4 Flight . | . . . . . . . . . . . . . . . . . . . . . . . . . . . . Fastest Speed 50 | 50 160 120 120 90 100 109 100 120 120 130 130 130 120 130 100 100 100 100 100 100 100 100 110 110 120 90 50 Average Speed 168 | 107 160 174 211 220 105 111 160 649 144 134 131 132 123 133 109 100 135 102 104 107 108 106 121 110 125 116 116 Slowest Speed 2100 | 160 160 320 240 1300 120 130 240 2100 240 140 140 240 130 140 140 100 240 110 110 110 150 110 160 120 170 170 180 Overloaded Moves . | . . . . . . . . . . . . . . . . . . . . . . . . . . . . Propulsion Burnouts . | . . . . . . . . . . . . . . . . . . . . . . . . . . . . Robots Hopped 3 | . . . . . . . . . . . 2 . . . . . . . . . . . . . 1 . . Cave-ins Triggered . | . . . . . . . . . . . . . . . . . . . . . . . . . . . . Teleports 1 | . . . . . . . . . . . . . . . . . . . . . . . . . . 1 . Exploration Rate (%) 56 | 4 13 94 99 95 18 87 56 98 82 11 58 72 62 64 14 78 16 97 98 95 60 18 47 92 31 13 17 Regions Visited 27 Branch Regions 18 Pre-discovered Areas 20 | . . 2 6 5 . . . . 2 . . . 3 1 . . . . 1 . . . . . . . . Known Exits Taken 16 | . . . 1 . 1 . . . 1 1 1 . 1 1 . . 1 1 1 1 1 1 . 1 1 1 . Unknown Exits Taken 9 | 1 1 1 . 1 . 1 1 1 . . . 1 . . . . . . . . . . 1 . . . . Scrap Searched 22 | . . 4 . 4 . . . . . . 1 3 . . . . . 4 3 . 3 . . . . . . Spaces Dug 104 | . . 2 6 . 4 . . . 10 2 3 . . 8 7 . 3 . 3 2 15 8 6 . 8 17 . Terrain Destroyed 1108 | . . 9 12 . 34 16 . 10 226 70 35 39 . 18 36 36 130 7 10 18 59 15 64 . 121 76 67 Melee 7 | . . . . . . . . . 1 1 . . . . 3 . . . 2 . . . . . . . . Projectile 735 | . . 9 12 . 27 16 . 10 65 9 35 39 . 17 33 36 69 7 8 18 59 15 58 . 94 63 36 AOE 358 | . . . . . 7 . . . 160 60 . . . . . . 61 . . . . . . . 27 12 31 Terrain Rammed . | . . . . . . . . . . . . . . . . . . . . . . . . . . . . Walls Destroyed . | . . . . . . . . . . . . . . . . . . . . . . . . . . . . Machines Disabled . | . . . . . . . . . . . . . . . . . . . . . . . . . . . . Actions | -11 -10 -10 -9 -9 -6 -6 -6 -6 -6 -5 -5 -5 -5 -4 -4 -4 -4 -4 -4 -4 -3 -3 -3 -3 -2 -1 -1 --------- Run | Yrd Mat Sub Rec Scr Fac Ext Cet Arc Hub Fac Upp Upp Zhi Pro Fac Was Fac Upp Upp War Pro Res Arm Lab Res Acc Com Total 24464 | 60 88 2418 1704 3660 1123 1323 328 788 1522 323 388 482 206 409 540 180 789 895 517 925 896 1003 821 606 897 695 878 Wait 2843 | . 2 50 313 380 199 183 11 75 119 26 37 19 32 92 61 3 127 169 61 41 140 161 59 214 109 97 63 Move 18826 | 39 62 2206 1272 3225 794 907 236 666 1136 261 305 413 157 278 403 134 548 625 431 772 669 765 620 363 585 392 562 Hop 3 | . . . . . . . . . . . 2 . . . . . . . . . . . . . 1 . . Pick Up 244 | 6 10 14 20 18 23 11 11 . 22 1 5 2 2 2 8 3 7 9 1 12 3 6 4 7 13 11 13 Fast Attach 113 | 4 . 3 3 3 6 7 10 5 14 1 4 . 4 1 3 2 7 3 . 3 2 4 3 3 1 7 10 Attach 140 | 3 1 6 2 3 10 7 5 2 18 1 2 1 2 . 4 1 4 5 . 6 2 5 2 1 6 16 25 Detach 121 | . . 3 4 . 2 8 5 5 15 . 4 . 1 2 4 2 7 4 . 4 2 2 1 1 2 22 21 Swap 418 | . 3 35 6 9 21 19 7 10 32 14 8 1 1 4 10 4 12 10 2 13 16 15 48 2 56 40 20 Drop 281 | . 2 28 8 22 11 13 19 2 26 . 6 1 7 3 9 2 9 9 1 16 6 9 8 8 8 19 29 Fire 1155 | 8 4 73 38 . 50 53 8 23 138 14 15 29 . 27 33 29 48 35 7 20 56 36 64 7 115 91 134 Melee 56 | . . . . . . . 16 . 1 5 . . . . 5 . . 13 14 . . . 1 . . . 1 Ram 1 | . . . . . . 1 . . . . . . . . . . . . . . . . . . . . . Kick . | . . . . . . . . . . . . . . . . . . . . . . . . . . . . Crush 12 | . 4 . 6 . . . . . 1 . . . . . . . . . . . . . . . 1 . . Escape Stasis 27 | . . . . . 7 . . . . . . . . . . . 20 . . . . . . . . . . Rewire 224 | . . . 32 . . 114 . . . . . 16 . . . . . 13 . 38 . . 11 . . . . Trap . | . . . . . . . . . . . . . . . . . . . . . . . . . . . . Miscellaneous . | . . . . . . . . . . . . . . . . . . . . . . . . . . . . Route ------- -11/Scrapyard -10/Materials -10/Subcaves (discovered 3 exits: [*Mat x2] / *Rec) -9/Recycling (discovered 2 exits: [*Fac] / *Scr) -9/Scraptown (discovered 2 exits: *Fac x2) -6/Factory (discovered 6 exits: Fac x3 / *Low x2 / *Ext) -6/Extension (discovered 2 exits: *Fac / *Cet) -6/Cetus (discovered 2 exits: *Fac / [*Arc]) -6/Archives (discovered 3 exits: *Fac / *Hub x2) -6/Hub_04(d) (discovered 4 exits: *Fac x4) -5/Factory (discovered 5 exits: Fac x4 / *Upp) -5/Upper Caves -5/Upper Caves (discovered 2 exits: *Fac / *Zhi) -5/Zhirov -4/Proximity Caves -4/Factory (discovered 5 exits: Res x4 / *Upp) -4/Waste -4/Factory (discovered 3 exits: *Res / *Upp x2) -4/Upper Caves -4/Upper Caves (discovered 2 exits: *Res / *War) -4/Warlord -3/Proximity Caves -3/Research (discovered 2 exits: *Res / *Arm) -3/Armory (discovered 3 exits: Res x2 / [*Lab]) -3/Lab -2/Research -1/Access -1/Command History --------- Turn | Location | Event 24 | -11/Scrapyard | Discovered new exit (range 14) 80 | -11/Scrapyard | Entered Materials 203 | -10/Materials | Discovered new exit (range 3) 221 | -10/Materials | Entered Subcaves 236 | -10/Subcaves | Discovered new exit (range 10) 268 | -10/Subcaves | Visited Clippyterm 273 | -10/Subcaves | Learned location of Section 7 (-2) 304 | -10/Subcaves | Build established: Mutant 586 | -10/Subcaves | Ambushed by Subdwellers from Twisted Machinery 719 | -10/Subcaves | Learned location of Zion (-6) 719 | -10/Subcaves | Met a Zionite searching for "candidates" 1010 | -10/Subcaves | A swath of the cavern ceiling suddenly collapsed 1652 | -10/Subcaves | Disturbed a concealed Subdweller 1875 | -10/Subcaves | A swath of the cavern ceiling suddenly collapsed 1948 | -10/Subcaves | Discovered new exit (range 10) 1968 | -10/Subcaves | Shifting Twisted Machinery released Sub. Monowheel 2082 | -10/Subcaves | Shifting Twisted Machinery released Battle Cannon 2360 | -10/Subcaves | Shifting Twisted Machinery released Sub. Beam Cannon 2365 | -10/Subcaves | Shifting Twisted Machinery released Sub. Power Source 3444 | -10/Subcaves | Discovered new exit (range 5) 3743 | -10/Subcaves | Visited 4L-MR0's lab 4280 | -10/Subcaves | Found SUBCON Basin 4427 | -10/Subcaves | Entered Recycling 4956 | -9/Recycling | Discovered new exit (range 16) 5042 | -9/Recycling | Identified exit to Scraptown 5095 | -9/Recycling | Learned Materials interactive machine intel 5108 | -9/Recycling | Learned location of Storage (-9) 5109 | -9/Recycling | Learned location of 1 exit from Recycling 5110 | -9/Recycling | Learned location of 1 exit from Recycling 5112 | -9/Recycling | Learned Materials trap positions 5124 | -9/Recycling | Learned 2 Materials zone layouts 5758 | -9/Recycling | Scanned before Scraplab entrance 5791 | -9/Recycling | Entered Scraplab 6287 | -9/Recycling | Build established: Commander-Mutant 6744 | -9/Recycling | Build established: Scavenger-Mutant 7278 | -9/Recycling | Build established: Commander-Mutant 7603 | -9/Recycling | Entered Scraptown 7603 | -9/Scraptown | Accompanied by 5 allies 7807 | -9/Scraptown | Scanned Subdweller tech in exchange for log data 7812 | -9/Scraptown | Learned Research trap positions 7815 | -9/Scraptown | Learned location of Testing (-3) 7817 | -9/Scraptown | Learned location of Quarantine (-2) 7851 | -9/Scraptown | Discovered new exit (range 5) 8261 | -9/Scraptown | Visited Shadow of the Wyrm 8292 | -9/Scraptown | Visited Fellowship of the Rings 8311 | -9/Scraptown | Visited Spacefarers 8391 | -9/Scraptown | Visited SPCMW 8465 | -9/Scraptown | Visited UFD Registry 8465 | -9/Scraptown | Registered with UFD as "Quantumsink" 8496 | -9/Scraptown | Visited CR-KLE's Repair Center 8597 | -9/Scraptown | Visited A0-MCA Data Center 8633 | -9/Scraptown | Visited Abandonware Association 8674 | -9/Scraptown | Learned abandonware demo "HACKBUD.EXE" 8674 | -9/Scraptown | Learned abandonware demo "ERRANTS.EXE" 8731 | -9/Scraptown | Visited Scrapoid Research Area 8923 | -9/Scraptown | Visited LU-1G1's Boring Crew 9043 | -9/Scraptown | Visited Analyses Database 9106 | -9/Scraptown | Visited Supply Room 9142 | -9/Scraptown | Visited Cartography Club 9207 | -9/Scraptown | Visited Scrapoid Pod Storage 9250 | -9/Scraptown | Visited Junk Repository 9315 | -9/Scraptown | Visited Modified Component R&D 10521 | -9/Scraptown | Found Scrap Suit 10810 | -9/Scraptown | Discovered new exit (range 5) 11122 | -9/Scraptown | Learned location of Upper Caves (-5) 11122 | -9/Scraptown | Learned location of Archives (-6) 11122 | -9/Scraptown | Learned 8 Materials zone layouts 11122 | -9/Scraptown | Learned 20 Factory zone layouts 11122 | -9/Scraptown | Learned 12 Research zone layouts 11122 | -9/Scraptown | Learned 4 Access zone layouts 11122 | -9/Scraptown | Learned 8 Access zone layouts 11122 | -9/Scraptown | Learned 12 Upper Caves zone layouts 11122 | -9/Scraptown | Learned 16 Upper Caves zone layouts 11122 | -9/Scraptown | Learned 12 Proximity Caves zone layouts 11122 | -9/Scraptown | Learned 16 Proximity Caves zone layouts 11122 | -9/Scraptown | Learned 4 Hub_04(d) zone layouts 11122 | -9/Scraptown | Learned Research emergency access door positions 11122 | -9/Scraptown | Learned location of 3 exits from Factory 11122 | -9/Scraptown | Learned location of 1 exit from Upper Caves 11122 | -9/Scraptown | Learned location of 3 exits from Proximity Caves 11192 | -9/Scraptown | Found Deep Structural Scanner 12492 | -9/Scraptown | CR-KLE repaired 5 parts 12610 | -9/Scraptown | Given a B+ rating by A0-MCA 12615 | -9/Scraptown | Found A0-MCA's Component Scanner 13649 | -9/Scraptown | Found Scrapoid Pod 14147 | -9/Scraptown | Tech Extrapolator generated special schematic: Machine Rigger 14547 | -9/Scraptown | Visited Cave Peace 14997 | -9/Scraptown | Found Scrap Suit 15157 | -9/Scraptown | Entered Factory 15157 | -6/Factory | Accompanied by 5 allies 15157 | -6/Factory | Evolved 8 slots: Propulsion x2, Utility x5, Weapon x1 15158 | -6/Factory | Identified exit to Lower Caves 15159 | -6/Factory | Identified exit to Factory 15159 | -6/Factory | Identified exit to Extension 15190 | -6/Factory | Garrison activated, responded to threat 15787 | -6/Factory | Repaired Broken Ovr. Railgun 15865 | -6/Factory | Repaired Med. Treads 15937 | -6/Factory | Fabricated Huge Storage Unit? 16041 | -6/Factory | Fabricated Ovr. Railgun? 16055 | -6/Factory | System corruption reached 10% 16102 | -6/Factory | Fabricated Tactical Coordination Suite? 16218 | -6/Factory | Scrapoid reinforcements arrived 16397 | -6/Factory | Entered Extension 16397 | -6/Extension | Accompanied by 4 allies 16438 | -6/Extension | Found Scrap Suit 16752 | -6/Extension | Repaired Lgt. EM Pulse Cannon 16840 | -6/Extension | Build established: Scavenger-Scrapper 16845 | -6/Extension | Scrapoids reinforcements arrived? 16857 | -6/Extension | Rescued A7 16902 | -6/Extension | Rescued a captive Derelict 16903 | -6/Extension | Rescued a captive Derelict 17091 | -6/Extension | Spotted B-75 Beast 17097 | -6/Extension | Allies destroyed B-75 Beast 17106 | -6/Extension | Spotted B-75 Beast 17115 | -6/Extension | Allies destroyed B-75 Beast 17142 | -6/Extension | Lost 3 allies 17157 | -6/Extension | Build established: Commander-Scrapper 17272 | -6/Extension | Disrupted transfer network 17282 | -6/Extension | Found Scrap Suit 17447 | -6/Extension | First assault squad dispatched 17554 | -6/Extension | Lost 6 allies 17742 | -6/Extension | Scrapoid Pod released 06E17-D (x5) 17801 | -6/Extension | Rescued a captive Derelict 17867 | -6/Extension | Destroyed 11 combat bots 17902 | -6/Extension | Discovered exit to Factory (range 10) 17903 | -6/Extension | Discovered new exit (range 6) 17952 | -6/Extension | Entered Cetus 17952 | -6/Cetus | Accompanied by 14 allies (A7) 17957 | -6/Cetus | Acquired a Cetus Manufacturing Module code from A7 17971 | -6/Cetus | Spotted Cetus Guard 17971 | -6/Cetus | Spotted Cetus Guard 17972 | -6/Cetus | Spotted Cetus Guard 17973 | -6/Cetus | Spotted Cetus Guard 17980 | -6/Cetus | Destroyed Cetus Guard 17982 | -6/Cetus | Allies destroyed Cetus Guard 17984 | -6/Cetus | Allies destroyed Cetus Guard 17987 | -6/Cetus | Allies destroyed Cetus Guard 18016 | -6/Cetus | Lost 3 allies 18030 | -6/Cetus | Started Cetus Manufacturing Module 18044 | -6/Cetus | Discovered new exit (range 15) 18055 | -6/Cetus | Manufactured an Enhanced Grunt 18062 | -6/Cetus | Spotted Cetus Guard 18062 | -6/Cetus | Spotted Cetus Guard 18064 | -6/Cetus | Spotted Cetus Guard 18065 | -6/Cetus | Spotted Cetus Guard 18065 | -6/Cetus | Allies destroyed Cetus Guard 18069 | -6/Cetus | Allies destroyed Cetus Guard 18072 | -6/Cetus | Allies destroyed Cetus Guard 18075 | -6/Cetus | Allies destroyed Cetus Guard 18080 | -6/Cetus | Manufactured an Enhanced Grunt 18091 | -6/Cetus | Discovered exit to Factory (range 15) 18097 | -6/Cetus | Met Revision 17 18105 | -6/Cetus | Manufactured an Enhanced Grunt 18130 | -6/Cetus | Manufactured an Enhanced Grunt 18155 | -6/Cetus | Manufactured an Enhanced Grunt 18330 | -6/Cetus | Murdered A7 18332 | -6/Cetus | Extracted ID and sensor layout for unrecognized location from A7's data core 18338 | -6/Cetus | Found Prototype Protection 18339 | -6/Cetus | Identified Med. Regenerative Plating 18453 | -6/Cetus | Entered Archives 18453 | -6/Archives | Accompanied by 13 allies 18519 | -6/Archives | Discovered exit to Factory (range 14) 18555 | -6/Archives | Discovered new exit (range 16) 18567 | -6/Archives | Discovered new exit (range 15) 19345 | -6/Archives | Build established: Commander-Gunner 22936 | -6/Archives | Entered Hub_04(d) 22936 | -6/Hub_04(d) | Accompanied by 15 allies 23008 | -6/Hub_04(d) | Garrison activated, responded to threat 23086 | -6/Hub_04(d) | Found Scrap Suit 23286 | -6/Hub_04(d) | First assault squad dispatched 23340 | -6/Hub_04(d) | Discovered exit to Factory (range 15) 23364 | -6/Hub_04(d) | Lost 5 allies 23447 | -6/Hub_04(d) | Discovered exit to Factory (range 16) 23635 | -6/Hub_04(d) | Learned location of 3 exits from Factory 23667 | -6/Hub_04(d) | Learned 2 Lower Caves zone layouts 23697 | -6/Hub_04(d) | Learned location of 1 exit from Lower Caves 23698 | -6/Hub_04(d) | Learned Extension stockpile data 23699 | -6/Hub_04(d) | Learned location of 1 exit from Hub_04(d) 23700 | -6/Hub_04(d) | Learned location of Upper Caves (-4) 23702 | -6/Hub_04(d) | Loaded intel: 18 trap records 23710 | -6/Hub_04(d) | Lost 3 allies 23712 | -6/Hub_04(d) | Learned Factory emergency access door positions 23742 | -6/Hub_04(d) | Build established: Scavenger-Gunner 24182 | -6/Hub_04(d) | Network Hub disabled 24182 | -6/Hub_04(d) | Spotted Lightning 24182 | -6/Hub_04(d) | Spotted Lightning 24182 | -6/Hub_04(d) | Spotted Lightning 24186 | -6/Hub_04(d) | Core integrity fell below 50% 24199 | -6/Hub_04(d) | Destroyed Lightning 24212 | -6/Hub_04(d) | Destroyed Lightning 24215 | -6/Hub_04(d) | Destroyed Lightning 24232 | -6/Hub_04(d) | Found Prototype Device 24232 | -6/Hub_04(d) | Identified Exp. Phase Shifter 24246 | -6/Hub_04(d) | Found Prototype Device 24246 | -6/Hub_04(d) | Identified Exp. EM Disruption Field 24254 | -6/Hub_04(d) | Found Exp. EM Disruption Field 24270 | -6/Hub_04(d) | Found Prototype Processor 24270 | -6/Hub_04(d) | Identified Exp. Targeting Computer 24278 | -6/Hub_04(d) | Found Exp. Targeting Computer 24298 | -6/Hub_04(d) | Found Prototype Energy Cannon 24298 | -6/Hub_04(d) | Identified EMDS 24305 | -6/Hub_04(d) | Found EMDS 24481 | -6/Hub_04(d) | Build established: Scavenger-Scrapper 24540 | -6/Hub_04(d) | Spotted Lightning 24576 | -6/Hub_04(d) | Spotted Lightning 24577 | -6/Hub_04(d) | Spotted Lightning 24592 | -6/Hub_04(d) | Network Hub disabled 24599 | -6/Hub_04(d) | Spotted Lightning 24606 | -6/Hub_04(d) | Destroyed Lightning 24608 | -6/Hub_04(d) | Destroyed Lightning 24634 | -6/Hub_04(d) | Spotted Lightning 24639 | -6/Hub_04(d) | Spotted Lightning 24663 | -6/Hub_04(d) | Destroyed Lightning 24665 | -6/Hub_04(d) | Destroyed Lightning 24672 | -6/Hub_04(d) | Destroyed Lightning 24679 | -6/Hub_04(d) | Destroyed Lightning 24699 | -6/Hub_04(d) | Found Exp. Phase Shifter 24717 | -6/Hub_04(d) | Found EMDS 24728 | -6/Hub_04(d) | Found Exp. Targeting Computer 24771 | -6/Hub_04(d) | Core integrity fell below 20% 24837 | -6/Hub_04(d) | Network Hub disabled 24899 | -6/Hub_04(d) | Found EMDS 24903 | -6/Hub_04(d) | Found Exp. Phase Shifter 24924 | -6/Hub_04(d) | Found Exp. Targeting Computer 25125 | -6/Hub_04(d) | Found Scrap Suit 25147 | -6/Hub_04(d) | Network Hub disabled 25148 | -6/Hub_04(d) | High security lockdown imminent 25188 | -6/Hub_04(d) | Entered Factory 25188 | -5/Factory | Evolved 2 slots: Power x1, Utility x1 25189 | -5/Factory | Identified exit to Factory 25190 | -5/Factory | Identified exit to Upper Caves 25488 | -5/Factory | First assault squad dispatched 25617 | -5/Factory | Scrapoids reinforcements arrived? 25631 | -5/Factory | Entered Upper Caves 25631 | -5/Upper Caves | Accompanied by 5 allies 25632 | -5/Upper Caves | Identified exit to Upper Caves 25757 | -5/Upper Caves | Attracted the attention of an 0b10 base 25824 | -5/Upper Caves | Found Scrap Suit 25925 | -5/Upper Caves | Lost 3 allies 25962 | -5/Upper Caves | Found Scrap Suit 26077 | -5/Upper Caves | Attracted the attention of an 0b10 checkpoint 26137 | -5/Upper Caves | Entered another Upper Caves area 26163 | -5/Upper Caves | Discovered exit to Factory (range 12) 26216 | -5/Upper Caves | Attracted the attention of an 0b10 outpost 26293 | -5/Upper Caves | Destroyed 13 combat bots 26587 | -5/Upper Caves | Discovered new exit (range 16) 26729 | -5/Upper Caves | Attacked by a delusional Derelict stockpiling Unaware 26789 | -5/Upper Caves | Entered Zhirov 26789 | -5/Zhirov | Accompanied by 7 allies 26790 | -5/Zhirov | Identified exit to Proximity Caves 26813 | -5/Zhirov | Met Zhirov 26839 | -5/Zhirov | Learned location of Command (-1) 26860 | -5/Zhirov | Zhirov requested help retrieving the SGEMP Prototype 26887 | -5/Zhirov | Found Alien Artifact 26887 | -5/Zhirov | Identified Integrated Reactor 26887 | -5/Zhirov | Installed Integrated Reactor, increased core energy generation (+10) 26941 | -5/Zhirov | Found Alien Artifact 27031 | -5/Zhirov | Entered Proximity Caves 27031 | -4/Proximity Caves | Accompanied by 4 allies 27138 | -4/Proximity Caves | Attracted the attention of an 0b10 checkpoint 27440 | -4/Proximity Caves | Lost 3 allies 27448 | -4/Proximity Caves | Learned Armory garrison access intel 27448 | -4/Proximity Caves | Learned Extension terminal intel 27448 | -4/Proximity Caves | Learned Research trap positions 27550 | -4/Proximity Caves | Learned 8 Research zone layouts 27559 | -4/Proximity Caves | Entered Factory 27559 | -4/Factory | Evolved 2 slots: Utility x1, Weapon x1 27560 | -4/Factory | Identified exit to Research 27727 | -4/Factory | Scrapoid reinforcements arrived 27747 | -4/Factory | Garrison activated, responded to threat 27751 | -4/Factory | Found Scrap Suit 27868 | -4/Factory | Discovered new exit (range 16) 27895 | -4/Factory | Lost 3 allies 28059 | -4/Factory | First assault squad dispatched 28165 | -4/Factory | Scrapoid reinforcements arrived 28175 | -4/Factory | Sucked down chute 28175 | -4/Factory | Entered Waste 28183 | -4/Waste | Spotted C-40 Crusher 28190 | -4/Waste | EMP discharged 28199 | -4/Waste | Destroyed C-40 Crusher 28200 | -4/Waste | Spotted C-40 Crusher 28210 | -4/Waste | Destroyed C-40 Crusher 28221 | -4/Waste | Spotted C-40 Crusher 28235 | -4/Waste | Destroyed C-40 Crusher 28243 | -4/Waste | Spotted C-40 Crusher 28258 | -4/Waste | Destroyed C-40 Crusher 28266 | -4/Waste | Spotted C-40 Crusher 28275 | -4/Waste | 5 allies followed down the chute 28275 | -4/Waste | Destroyed C-40 Crusher 28290 | -4/Waste | EMP discharged 28290 | -4/Waste | System corruption reached 10% 28303 | -4/Waste | Spotted C-40 Crusher 28305 | -4/Waste | Destroyed C-40 Crusher 28361 | -4/Waste | Discovered new exit (range 11) 28375 | -4/Waste | Entered Factory 28375 | -4/Factory | Accompanied by 3 allies 28616 | -4/Factory | Repaired Broken Centrium Heavy Treads? 28771 | -4/Factory | Found Scrap Suit 28838 | -4/Factory | Identified exit to Upper Caves 29113 | -4/Factory | Fabricated Assault Drone Bay? 29150 | -4/Factory | First assault squad dispatched 29258 | -4/Factory | Discovered exit to Research (range 4) 29324 | -4/Factory | Repaired Broken Ovr. Coil Gun? 29420 | -4/Factory | Entered Upper Caves 29794 | -4/Upper Caves | Spotted B-86 Titan 29828 | -4/Upper Caves | Destroyed B-86 Titan 29889 | -4/Upper Caves | Attracted the attention of an 0b10 outpost 30217 | -4/Upper Caves | Discovered new exit (range 67) 30308 | -4/Upper Caves | Identified exit to Upper Caves 30352 | -4/Upper Caves | Entered another Upper Caves area 30352 | -4/Upper Caves | Accompanied by 2 allies 30365 | -4/Upper Caves | Discovered exit to Research (range 19) 30585 | -4/Upper Caves | Discovered new exit (range 45) 30800 | -4/Upper Caves | Encountered a Warlord checkpoint 30867 | -4/Upper Caves | Identified exit to Warlord 30903 | -4/Upper Caves | Entered Warlord 30904 | -4/Warlord | Identified exit to Proximity Caves 30945 | -4/Warlord | System corruption cleaned by Quarantine Array 31366 | -4/Warlord | Visited the Vortex Lab 31380 | -4/Warlord | Warlord's base attacked by MAIN.C 31381 | -4/Warlord | Found Prototype Energy Cannon 31381 | -4/Warlord | Identified Vortex Driver 31386 | -4/Warlord | Met EX-DEC 31389 | -4/Warlord | Found Prototype Energy Cannon 31568 | -4/Warlord | Lost 3 allies 31605 | -4/Warlord | Rebuked by Warlord 31640 | -4/Warlord | Identified BFG-9k Vortex Edition 31646 | -4/Warlord | Found Exp. Core Analyzer 31652 | -4/Warlord | Found System Mapper 31660 | -4/Warlord | Found Vortex Chain Reactor 31664 | -4/Warlord | Found Exp. Cloaking Device 31716 | -4/Warlord | Spotted B-86 Titan 31719 | -4/Warlord | Spotted B-90 Cyclops 31725 | -4/Warlord | Spotted Striker 31730 | -4/Warlord | Warlord forces counterattacked 31734 | -4/Warlord | Destroyed B-90 Cyclops 31737 | -4/Warlord | Spotted B-90 Cyclops 31793 | -4/Warlord | Spotted Executioner 31800 | -4/Warlord | Spotted Executioner 31876 | -4/Warlord | Lost 18 allies 31880 | -4/Warlord | Spotted Striker 31880 | -4/Warlord | Spotted Striker 31880 | -4/Warlord | Spotted Executioner 31900 | -4/Warlord | Entered Proximity Caves 31928 | -3/Proximity Caves | Lost 10 allies 31939 | -3/Proximity Caves | Found DCF Scrap (12 items) 32064 | -3/Proximity Caves | Spotter reported a threat 32083 | -3/Proximity Caves | Attracted the attention of an 0b10 base 32215 | -3/Proximity Caves | Destroyed 8 combat bots 32218 | -3/Proximity Caves | Learned 8 Research zone layouts 32218 | -3/Proximity Caves | Learned 8 Factory zone layouts 32392 | -3/Proximity Caves | Encountered a Derelict sapper outpost 32920 | -3/Proximity Caves | Entered Research 32920 | -3/Research | Evolved 2 slots: Power x1, Utility x1 32921 | -3/Research | Identified exit to Armory 32921 | -3/Research | Identified exit to Research 32922 | -3/Research | Loaded intel: 88 trap records 32982 | -3/Research | Repaired Ovr. Beamcaster 33016 | -3/Research | Repaired Gamma Rifle 33120 | -3/Research | Revision forces began assault on 0b10 33148 | -3/Research | Spotted B-86 Titan 33188 | -3/Research | Destroyed B-86 Titan 33265 | -3/Research | Fabricated Ovr. Railgun (x1) 33281 | -3/Research | Met up with Revision 17++ 33544 | -3/Research | Found Hellfire Missile Launcher 33620 | -3/Research | Research terminal network offline 33824 | -3/Research | Spotted Executioner 33829 | -3/Research | Spotted Striker 33832 | -3/Research | Destroyed Executioner 33836 | -3/Research | Destroyed Striker 33893 | -3/Research | Scrapoid reinforcements arrived 34025 | -3/Research | Entered Armory 34025 | -3/Armory | Accompanied by 6 allies 34026 | -3/Armory | Met VL-GR5, who suggested a friendly competition 34303 | -3/Armory | Found Scrap Suit 34424 | -3/Armory | Discovered exit to Research (range 15) 34502 | -3/Armory | Lost 3 allies 34721 | -3/Armory | Discovered exit to Research (range 16) 34770 | -3/Armory | Discovered new exit (range 15) 34775 | -3/Armory | First assault squad dispatched 34848 | -3/Armory | Build established: Hacker-Gunner 34848 | -3/Armory | Spotted B-86 Titan 34905 | -3/Armory | Destroyed B-86 Titan 35088 | -3/Armory | Entered Lab 35096 | -3/Lab | Discovered exit to Research (range 8) 35107 | -3/Lab | Hidden lab's door opened automatically 35107 | -3/Lab | Sensor layout match revealed 35108 | -3/Lab | Gained access to the hidden lab's interior 35186 | -3/Lab | Found Alien Artifact 35186 | -3/Lab | Identified Core Regenerator 35186 | -3/Lab | Used Core Regenerator, restored core integrity (+116) 35193 | -3/Lab | Found Alien Artifact 35193 | -3/Lab | Identified Integrated Mediator 35193 | -3/Lab | Installed Integrated Mediator, increased core attachment efficiency 35216 | -3/Lab | Found Deep Network Scanner 35219 | -3/Lab | Found AEGIS Remote Shield 35303 | -3/Lab | Found Gui. Remote Datajack 35356 | -3/Lab | Found Warp Cannon 35470 | -3/Lab | Found Alien Artifact 35579 | -3/Lab | Found Alien Artifact 35737 | -3/Lab | Entered Research 35737 | -2/Research | Evolved 2 slots: Utility x2 35738 | -2/Research | Loaded intel: 96 trap records 35903 | -2/Research | Scrapoid reinforcements arrived 35968 | -2/Research | Garrison activated, responded to threat 36157 | -2/Research | Local machine network offline 36237 | -2/Research | First assault squad dispatched 36369 | -2/Research | Lost 3 allies 36889 | -2/Research | Destroyed 8 combat bots 36931 | -2/Research | Discovered new exit (range 12) 36933 | -2/Research | Spotted B-90 Cyclops 36945 | -2/Research | Identified exit to Access 36960 | -2/Research | Entered Access 36960 | -1/Access | Evolved 2 slots: Weapon x2 37010 | -1/Access | Garrison activated, responded to threat 37091 | -1/Access | Energy Cycler disabled 37092 | -1/Access | Identified Transdimensional Reconstructor (x2) 37092 | -1/Access | Warped through subspace 37240 | -1/Access | First assault squad dispatched 37327 | -1/Access | Destroyed 8 combat bots 37378 | -1/Access | Build established: Scavenger-Executioner 37474 | -1/Access | Scrapoid reinforcements arrived 37518 | -1/Access | Found Scrap Suit 37533 | -1/Access | Lost 3 allies 37869 | -1/Access | Discovered new exit (range 8) 37875 | -1/Access | Identified exit to Command 37876 | -1/Access | Entered Command 38126 | -1/Command | First assault squad dispatched 38337 | -1/Command | Spotted M Guard 38338 | -1/Command | Spotted Combat Programmer 38338 | -1/Command | Spotted Combat Programmer 38359 | -1/Command | System corruption reached 10% 38370 | -1/Command | Spotted M Guard 38380 | -1/Command | Destroyed M Guard 38384 | -1/Command | Destroyed M Guard 38404 | -1/Command | Destroyed Combat Programmer 38415 | -1/Command | Lost 4 parts (1p1u2w) 38477 | -1/Command | Destroyed 9 combat bots 38483 | -1/Command | Lost 3 parts (1p1u1w) 38571 | -1/Command | Destroyed Combat Programmer 38571 | -1/Command | All MAIN.C guards destroyed 38848 | -1/Command | Met MAIN.C 38860 | -1/Command | 0b10 Conduit disabled 38896 | -1/Command | Destroyed MAIN.C Shell 38898 | -1/Command | MAIN.C activated Command garrisons 38952 | -1/Command | System corruption reached 30% 38961 | -1/Command | Core integrity fell below 50% 38991 | -1/Command | Core integrity fell below 20% 38999 | -1/Command | Destroyed by L-61 Swordsman with Power Sword Last Messages --------------- 38981_ Dropped Tactical Coordination Suite. 38982_ Dropped Imp. Matter Compressor. 38983_ Acquired 58 matter. 38985_ Penetrated by Slug. 38985_ Slug penetrates 0b10 Conduit. 38985_ Imp. Antigrav System destroyed. 38985_ P-80 Master destroyed. 38987_ System corrupted: Energy discharge (-30). 38988_ Penetrated by Slug. 38988_ Exp. Targeting Computer destroyed. 38989_ Acquired Corrupted KE Penetrator. 38991_ Penetrated by Slug. 38993_ Fabnet algorithm triggers G-73 Enforcer IFF filter rewrite. 38994_ Slug penetrates G-73 Enforcer. 38994_ Penetrated by Slug. 38995_ Acquired Corrupted Powered Hammer. 38995_ Integrated Corrupted Powered Hammer (+2). 38997_ Penetrated by Slug. 38997_ MAIN.C knocked back. 38998_ G-73 Enforcer destroyed. Map ----- +----------------------------------------------------+ | ?????????????????????????????????????????????????? | | ?????????????????????????????????????????????????? | | ?????????????????????????????????????????????????? | | ?????????????????????????????????????????????????? | | ?????????????????????????????????????????????????? | | ?????????????????????????????????????????????????? | | ?????????????????????????????????????????????????? | | ?????????????????????????????????????????????????? | | ?????????????????????????????????????????????????? | | ?????????????????????????????????????????????????? | | ?????????????????????????????????????????????????? | | ?????????????????????????????????????????????????? | | ?????????????????????????????????????????????????? | | ?????????????????????????????????????????????????? | | ?????????????????????????????????????????????????? | | ?????????????????????????????????????????????????? | | ??????????????????????????????????????? ???????? | | ??????????????????????????????????????? ???????? | | ??????????????????????????????????????# ???????? | | ??????????????????????????????????????# #??????? | | ??????????????????????????????????????# #??????? | | ##############????????????????????????# #??????? | | " "" #????????????????????????# #??????? | | ?"" #????????????????????????# #??????? | | "" #######################??# #??????? | | "" + =%*= @ % ! #??# #??????? | | "" %+ %] p l =![! #??# #?##???? | | "" ![=! h ! M %!=%[[ #??# ## #???? | | !!%###################[ #??# # #????? | | !*!!#?????????????????# #??# "#???### | | *!=#?????????????????# ##?##""#?####"# | | % *!#?????????????????# T#?# ### ! "# | | "#?????????????????#+++#### !"" ! "" | | """#?????????????????# ! | | """#?????????????????# | | " #?????????????????# | | " #?????????????????# =/ | | " """" " #?????????????????# == =! | | " " """? ??????????????????# # ##= | | ??? " ????????????????????????###### # ### | | ??????????????????????????????????# !=! # ##" | | ????????????????????????????????# ### ## | | ????????????????????????????????#### # ######## | | ??????????????????????????????????# #" #??????? | | ??????????????????????????????????##### #??????? | | ??????????????????????????????????????# #??????? | | ??????????????????????????????????????# #??????? | | ??????????????????????????????????????# #??????? | | ??????????????????????????????????????# #??????? | | ??????????????????????????????????????# #??????? | +----------------------------------------------------+ Best States ------------- Heat Dissipation 128 Coolant Potential 200 Energy Generation 81 Energy Capacity 1490 Matter Stores 312 Matter Capacity 600 Sight Range 16 Robot Scan Range 18 Terrain Scan Density 10 Cloak Strength 4 Additional Mass Support 16 Base Temperature (-) 200 EM Shielding 2 Armor Coverage 900 Resistance: EM 75 Phase Shifting 20 Evasion (%) 60 Targeting Accuracy 28 Target Analysis 8 Core Analysis 8 Recoil Reduction 4 Particle Charging 30 Salvage Targeting 4 Offensive Hacking 25 Defensive Hacking 26 Authchip Count 5 Item Schematics ----------------- Huge Storage Unit | -9/Recycling | Hacked Spk. Treads | -9/Scraptown | Extrapolated Mak. Targeting Computer | -9/Scraptown | Extrapolated 0b10 Decoder Chip [Skirmisher] | -9/Scraptown | Extrapolated Mak. Light Armor Plating | -9/Scraptown | Extrapolated Machine Rigger | -9/Scraptown | Extrapolated Tactical Coordination Suite | -9/Scraptown | Extrapolated Mak. Leg | -9/Scraptown | Extrapolated 0b10 Decoder Chip [Generic] | -9/Scraptown | Extrapolated 0b10 Decoder Chip [Scout] | -9/Scraptown | Extrapolated Mak. Coolant Network | -6/Factory | Extrapolated Spk. Medium Treads | -6/Factory | Extrapolated Structural Scanner | -6/Factory | Extrapolated Mak. Core Shielding | -6/Factory | Extrapolated Mak. Trap Scanner | -6/Factory | Extrapolated Beamcaster | -6/Factory | Extrapolated Hvy. Beamcaster | -6/Factory | Extrapolated Ovr. Railgun | -6/Factory | Scanalyzed Mak. Sensor Array | -6/Factory | Extrapolated 0b10 Decoder Chip [Looter] | -6/Factory | Extrapolated Mak. Shrapnel Gun | -6/Factory | Extrapolated Mak. Hacking Suite | -6/Extension | Extrapolated Mak. System Shield | -6/Extension | Extrapolated Mak. Hover Unit | -6/Extension | Extrapolated Mak. Medium Armor Plating | -6/Extension | Extrapolated Mak. Ablative Armor | -6/Extension | Extrapolated Mak. System Restoration Module | -6/Extension | Extrapolated Mak. Terrain Scanner | -6/Extension | Extrapolated Hvy. Battle Rifle | -6/Extension | Extrapolated Mak. ECM Suite | -6/Cetus | Extrapolated Mak. Thermal Plating | -6/Hub_04(d) | Extrapolated Mak. Propulsion Shielding | -6/Hub_04(d) | Extrapolated Assault Drone Bay | -5/Zhirov | Free Exp. Heat Sink | -5/Zhirov | Free Exp. Optical Array | -5/Zhirov | Free Imp. Arc Thrower | -5/Zhirov | Free Imp. Armor Integrity Analyzer | -3/Research | Hacked Exp. Cooling System | -3/Research | Hacked Robot Schematics ------------------ G-50 Soldier | -6/Hub_04(d) | Hacked X-77 Beamer | -3/Research | Hacked A-02 Transporter | -3/Research | Hacked Fabricated ------------ Huge Storage Unit | x1 | -6/Factory | Authchip Ovr. Railgun | x1 | -6/Factory | Authchip Tactical Coordination Suite | x1 | -6/Factory | Authchip Assault Drone Bay | x1 | -4/Factory Ovr. Railgun | x1 | -3/Research Alien Tech Used ----------------- Integrated Reactor Core Regenerator Integrated Mediator Transdimensional Reconstructor Achievements -------------- None Challenges ------------ None Game ------ Seed RecoilBeamBattery Manual? 0 Play Time 06:44:38 Cumulative 614.7 hours Start 2024.08.09 @ 10:56:22 End 2024.08.10 @ 20:59:55 Sessions 5 Manual Loads 0 Difficulty Rogue Special Mode None Game No. 208 Rogue 192 Adventurer 15 Explorer 1 Win Type - Total 36 Types 10/3/10/2/2/0/5/3/1 Lore% 92 Gallery% 93 Achievement% 83 Wizard Run 0 Options --------- Layout 0 ASCII 0 Keyboard 0 Movement Numpad Keybinds 0 Fullscreen 1 Font 18/SmallcapsGlow Map View 76x50 Zoom Use 0% Tactical HUD 1 Map Filters NONE Filters NONE Steam 1 RUN: 5eb16a7a-ac8e-4029-aeee-f00e2010b50f